Department Family,Entity,Date,Expense Type,Expense Area,Supplier,Transaction Number, Amount 
CLG,Standards Board for England,01/04/2009,IT Software,IT,ANCORIS LIMITED,49795,"2,344.85"
CLG,Standards Board for England,01/04/2009,Repairs & Maintenance,HR,CLEANING NORTHWEST,49783,"1,440.12"
CLG,Standards Board for England,01/04/2009,IT Software,IT,KELWAY (UK) LTD,49792,"1,075.25"
CLG,Standards Board for England,01/04/2009,Photocopier Leasing Charges,HR,OCE FINANCE,49749,684.25
CLG,Standards Board for England,02/04/2009,Professional Fees,IT,KELWAY (UK) LTD,49785,977.5
CLG,Standards Board for England,02/04/2009,Events at Conferences,COM,PRO'TEAN DESIGN,49784,632.5
CLG,Standards Board for England,02/04/2009,Contract Staff,IVG,RUSSAM GMS,50001,991.88
CLG,Standards Board for England,02/04/2009,Contract Staff,IVG,RUSSAM GMS,50000,"2,479.69"
CLG,Standards Board for England,03/04/2009,Contract Staff,CEO,BADENOCH & CLARK,49999,"2,765.75"
CLG,Standards Board for England,06/04/2009,Travel - Train,APE,CAPITA BUSINESS TRAVEL,49975,50.65
CLG,Standards Board for England,06/04/2009,Travel - Train,BRD,CAPITA BUSINESS TRAVEL,49975,704.51
CLG,Standards Board for England,06/04/2009,Travel - Train,COM,CAPITA BUSINESS TRAVEL,49975,409.77
CLG,Standards Board for England,06/04/2009,Travel - Train,HR,CAPITA BUSINESS TRAVEL,49975,415.55
CLG,Standards Board for England,06/04/2009,Travel - Train,IVG,CAPITA BUSINESS TRAVEL,49975,992.42
CLG,Standards Board for England,06/04/2009,Travel - Train,PAG,CAPITA BUSINESS TRAVEL,49975,"1,184.10"
CLG,Standards Board for England,06/04/2009,Accommodation,COM,CAPITA BUSINESS TRAVEL,49975,458.5
CLG,Standards Board for England,06/04/2009,Accommodation,FIN,CAPITA BUSINESS TRAVEL,49975,245.62
CLG,Standards Board for England,06/04/2009,Accommodation,GOV,CAPITA BUSINESS TRAVEL,49975,410.41
CLG,Standards Board for England,06/04/2009,Accommodation,IVG,CAPITA BUSINESS TRAVEL,49975,574.84
CLG,Standards Board for England,06/04/2009,Accommodation,LEG,CAPITA BUSINESS TRAVEL,49975,643.06
CLG,Standards Board for England,06/04/2009,Board Travel & Accommodation,BRD,CAPITA BUSINESS TRAVEL,49975,732.37
CLG,Standards Board for England,06/04/2009,Travel - Train,FIN,CAPITA BUSINESS TRAVEL,49975,274.6
CLG,Standards Board for England,06/04/2009,Travel - Train,IT,CAPITA BUSINESS TRAVEL,49975,111.6
CLG,Standards Board for England,06/04/2009,Travel - Train,LEG,CAPITA BUSINESS TRAVEL,49975,156
CLG,Standards Board for England,06/04/2009,Events at Conferences,COM,CAPITA BUSINESS TRAVEL,49975,347.5
CLG,Standards Board for England,06/04/2009,Travel - Train,CEO,CAPITA BUSINESS TRAVEL,49975,934.98
CLG,Standards Board for England,06/04/2009,Travel - Train,GOV,CAPITA BUSINESS TRAVEL,49975,398.77
CLG,Standards Board for England,07/04/2009,Contract Staff,CEO,BADENOCH & CLARK,49679,"2,765.75"
CLG,Standards Board for England,07/04/2009,Telephone and Fax - Land line,APE,BRITISH TELECOMMUNICATIONS PLC,49685,621.93
CLG,Standards Board for England,07/04/2009,Rates,HR,MANCHESTER CITY COUNCIL,50042,"5,414.00"
CLG,Standards Board for England,07/04/2009,Catering,BRD,STOCK RESTAURANT,50009,606.05
CLG,Standards Board for England,12/04/2009,Periodicals,STA,LEXIS NEXIS,49797,"1,101.29"
CLG,Standards Board for England,12/04/2009,Periodicals,STA,LEXIS NEXIS,49798,"1,272.07"
CLG,Standards Board for England,14/04/2009,Contract Staff,LEG,SELLICK PARTNERSHIPS,49684,"1,497.30"
CLG,Standards Board for England,14/04/2009,Furniture & Fittings,HR,TSK GROUP PLC,49788,"1,236.07"
CLG,Standards Board for England,15/04/2009,Contract Staff,CEO,BADENOCH & CLARK,49762,"2,212.60"
CLG,Standards Board for England,15/04/2009,Telephone and Fax - Land line,IT,BRITISH TELECOMMUNICATIONS PLC,49737,"2,447.51"
CLG,Standards Board for England,15/04/2009,Contract Staff,IVG,RUSSAM GMS,49750,"2,479.69"
CLG,Standards Board for England,15/04/2009,Contract Staff,IVG,RUSSAM GMS,49751,"1,983.75"
CLG,Standards Board for England,16/04/2009,Electricity,APE,BRITISH GAS,49802,838.13
CLG,Standards Board for England,16/04/2009,Contract Staff,LEG,SELLICK PARTNERSHIPS,49752,"1,481.36"
CLG,Standards Board for England,17/04/2009,Contract Staff,APE,HEADWAY RECRUITMENT,49773,347.3
CLG,Standards Board for England,17/04/2009,Travel - Train,APE,HEADWAY RECRUITMENT,49773,261.6
CLG,Standards Board for England,17/04/2009,Subsistence,APE,HEADWAY RECRUITMENT,49773,13.68
CLG,Standards Board for England,17/04/2009,Telephone and Fax - Land line,APE,HEADWAY RECRUITMENT,49773,6
CLG,Standards Board for England,17/04/2009,Internet Charges,IST,KINGSTON COMMUNICATIONS,49744,"3,500.31"
CLG,Standards Board for England,20/04/2009,Professional Fees,HRC,MANAGE HEALTH,49903,"1,361.69"
CLG,Standards Board for England,20/04/2009,Telephone and Fax - Land line,APE,VODAFONE CORPORATE LTD,49859,24.23
CLG,Standards Board for England,20/04/2009,Telephone and Fax - Land line,CEO,VODAFONE CORPORATE LTD,49859,71.4
CLG,Standards Board for England,20/04/2009,Telephone and Fax - Land line,COM,VODAFONE CORPORATE LTD,49859,77.59
CLG,Standards Board for England,20/04/2009,Telephone and Fax - Land line,FIN,VODAFONE CORPORATE LTD,49859,28.06
CLG,Standards Board for England,20/04/2009,Telephone and Fax - Land line,GOV,VODAFONE CORPORATE LTD,49859,74.5
CLG,Standards Board for England,20/04/2009,Telephone and Fax - Land line,HR,VODAFONE CORPORATE LTD,49859,48.4
CLG,Standards Board for England,20/04/2009,Telephone and Fax - Land line,IT,VODAFONE CORPORATE LTD,49859,849.3
CLG,Standards Board for England,20/04/2009,Telephone and Fax - Land line,IVG,VODAFONE CORPORATE LTD,49859,349.32
CLG,Standards Board for England,20/04/2009,Telephone and Fax - Land line,LEG,VODAFONE CORPORATE LTD,49859,79.35
CLG,Standards Board for England,20/04/2009,Telephone and Fax - Land line,PAG,VODAFONE CORPORATE LTD,49859,75.75
CLG,Standards Board for England,21/04/2009,Service Charges,HR,CIBC WORLD MARKETS PLC,49950,"46,813.24"
CLG,Standards Board for England,21/04/2009,IT Hardware,IT,KELWAY (UK) LTD,49898,"4,151.98"
CLG,Standards Board for England,21/04/2009,Catering,IVG,WHAT IF LTD,49857,"1,527.20"
CLG,Standards Board for England,22/04/2009,Contract Staff,CEO,BADENOCH & CLARK,49868,"1,659.45"
CLG,Standards Board for England,22/04/2009,IT Software,IT,KELWAY (UK) LTD,49904,"1,789.40"
CLG,Standards Board for England,23/04/2009,IT Hardware Repairs & Maintenance,IST,CHARTERHOUSE VOICE &DATA PLC,49897,"3,947.04"
CLG,Standards Board for England,23/04/2009,IT Software,IST,E SQUARED UK LTD,49894,"1,426.00"
CLG,Standards Board for England,23/04/2009,Internet Charges,IST,KINGSTON COMMUNICATIONS,49879,"1,006.25"
CLG,Standards Board for England,23/04/2009,Contract Staff,IVG,RUSSAM GMS,49866,"1,983.75"
CLG,Standards Board for England,23/04/2009,Contract Staff,LEG,SELLICK PARTNERSHIPS,49888,"1,126.84"
CLG,Standards Board for England,26/04/2009,Postage,HR,PITNEY BOWES LTD,49883,513
CLG,Standards Board for England,27/04/2009,IT Software,IT,KELWAY (UK) LTD,49899,"10,212.00"
CLG,Standards Board for England,27/04/2009,Communications Projects,COM,LG COMMUNICATIONS,49963,"1,250.00"
CLG,Standards Board for England,27/04/2009,Contract Staff,IVG,RUSSAM GMS,49892,"2,479.69"
CLG,Standards Board for England,27/04/2009,Telephone and Fax - Land line,IT,VODAFONE CORPORATE LTD,49964,853.3
CLG,Standards Board for England,28/04/2009,Contract Staff,CEO,BADENOCH & CLARK,49960,"2,765.75"
CLG,Standards Board for England,28/04/2009,IT Hardware,IT,KELWAY (UK) LTD,49958,632.5
CLG,Standards Board for England,28/04/2009,Communications Projects,COM,PUKKA FILMS,49893,"8,849.41"
CLG,Standards Board for England,29/04/2009,Placement Fee,CEO,TMP (UK)LTD,49959,"20,010.00"
CLG,Standards Board for England,30/04/2009,Professional Fees,FIN,KEY PERSONNEL GROUP,49954,528.21
CLG,Standards Board for England,30/04/2009,Contract Staff,LEG,SELLICK PARTNERSHIPS,49955,"1,485.23"
CLG,Standards Board for England,05/05/2009,Service Charges,HR,CLEANING NORTHWEST,50171,"1,440.12"
CLG,Standards Board for England,05/05/2009,Photocopier,HR,OCE (UK) LTD ,50167,796.13
CLG,Standards Board for England,05/05/2009,Legal Fees,LEG,WATERLOW LEGAL & REGULATORYLTD,50195,759
CLG,Standards Board for England,06/05/2009,Internal Audit Fees,FIN,BENTLEY JENNISON RISK MANAGEME,50160,"1,507.65"
CLG,Standards Board for England,06/05/2009,Professional Fees,HR,EVERSHEDS,50187,"6,591.96"
CLG,Standards Board for England,06/05/2009,Professional Fees,IVG,EVERSHEDS,50187,"6,591.96"
CLG,Standards Board for England,06/05/2009,Service Charges,HR,JD WILLIAMS,50165,"4,961.82"
CLG,Standards Board for England,06/05/2009,Recruitment Advertising,CEO,TMP (UK)LTD,50193,"19,792.71"
CLG,Standards Board for England,06/05/2009,Placement Fee,CEO,TMP (UK)LTD,50188,"10,005.00"
CLG,Standards Board for England,07/05/2009,Travel - Train,BRD,CAPITA BUSINESS TRAVEL,50201,816.11
CLG,Standards Board for England,07/05/2009,Travel - Train,COM,CAPITA BUSINESS TRAVEL,50201,727.15
CLG,Standards Board for England,07/05/2009,Travel - Train,HR,CAPITA BUSINESS TRAVEL,50201,171.22
CLG,Standards Board for England,07/05/2009,Travel - Train,IVG,CAPITA BUSINESS TRAVEL,50201,"3,893.37"
CLG,Standards Board for England,07/05/2009,Travel - Train,PAG,CAPITA BUSINESS TRAVEL,50201,885.86
CLG,Standards Board for England,07/05/2009,General Travel - Air,LEG,CAPITA BUSINESS TRAVEL,50201,91.8
CLG,Standards Board for England,07/05/2009,Accommodation,COM,CAPITA BUSINESS TRAVEL,50201,427.5
CLG,Standards Board for England,07/05/2009,Accommodation,IVG,CAPITA BUSINESS TRAVEL,50201,170
CLG,Standards Board for England,07/05/2009,Board Travel & Accommodation,BRD,CAPITA BUSINESS TRAVEL,50201,125.45
CLG,Standards Board for England,07/05/2009,Travel - Train,IT,CAPITA BUSINESS TRAVEL,50201,47.82
CLG,Standards Board for England,07/05/2009,Travel - Train,LEG,CAPITA BUSINESS TRAVEL,50201,496.92
CLG,Standards Board for England,07/05/2009,Travel - Train,CEO,CAPITA BUSINESS TRAVEL,50201,388
CLG,Standards Board for England,07/05/2009,Travel - Train,GOV,CAPITA BUSINESS TRAVEL,50201,557
CLG,Standards Board for England,07/05/2009,General Travel - Air,IVG,CAPITA BUSINESS TRAVEL,50201,180.58
CLG,Standards Board for England,07/05/2009,Press Office Services,COM,DURRANTS PRESS CUTTINGS LTD,50177,"2,739.07"
CLG,Standards Board for England,07/05/2009,Recruitment Advertising,CEO,HAY GROUP MANAGEMENT LIMITED,50173,"1,380.00"
CLG,Standards Board for England,07/05/2009,Rates,HR,MANCHESTER CITY COUNCIL,50042,"5,416.00"
CLG,Standards Board for England,07/05/2009,Contract Staff,LEG,SELLICK PARTNERSHIPS,50163,"1,497.30"
CLG,Standards Board for England,08/05/2009,Contract Staff,CEO,BADENOCH & CLARK,50161,"2,765.75"
CLG,Standards Board for England,08/05/2009,Photocopier,HR,OCE (UK) LTD ,50178,"1,043.14"
CLG,Standards Board for England,11/05/2009,This Year's Conf Prepayments,COM,BENEDICT BUSINESS RESOURCES,50275,"10,741.00"
CLG,Standards Board for England,11/05/2009,Internet Charges,IST,KINGSTON COMMUNICATIONS,50254,"2,731.25"
CLG,Standards Board for England,11/05/2009,Events at Conferences,COM,PRO'TEAN DESIGN,50174,"5,522.28"
CLG,Standards Board for England,11/05/2009,This Year's Conf Prepayments,COM,THOMPSON BRAND PARTNERS,50273,"6,635.50"
CLG,Standards Board for England,11/05/2009,Communications Projects,COM,THOMPSON BRAND PARTNERS,50274,"1,748.00"
CLG,Standards Board for England,11/05/2009,IT Software Support,IT,VIZUAL BUSINESS TOOLS PLC,50253,"2,288.50"
CLG,Standards Board for England,12/05/2009,Contract Staff,IVG,RUSSAM GMS,50276,"1,983.75"
CLG,Standards Board for England,14/05/2009,Contract Staff,LEG,SELLICK PARTNERSHIPS,50277,"1,122.98"
CLG,Standards Board for England,15/05/2009,Commissioned Research,HR,BMG RESEARCH,50426,"5,563.13"
CLG,Standards Board for England,18/05/2009,Contract Staff,CEO,BADENOCH & CLARK,50313,"2,212.60"
CLG,Standards Board for England,18/05/2009,Corporate Training,HR,REED TRAINING,50372,"1,466.25"
CLG,Standards Board for England,18/05/2009,Corporate Training,HR,REED TRAINING,50340,"1,449.00"
CLG,Standards Board for England,19/05/2009,Publication Projects,COM,EC GROUP,50348,"2,581.75"
CLG,Standards Board for England,19/05/2009,Professional Fees,HR,GOVERNMENT ACTUARY'S DEPT.,50429,956.28
CLG,Standards Board for England,20/05/2009,IT Software Support,IT,CHARTERHOUSE VOICE &DATA PLC,50326,724.5
CLG,Standards Board for England,20/05/2009,IT Software Support,IST,ETHER-RAY,50346,"5,865.00"
CLG,Standards Board for England,20/05/2009,IT Software,IST,VIZUAL BUSINESS TOOLS PLC,50374,"3,450.00"
CLG,Standards Board for England,21/05/2009,Contract Staff,CEO,BADENOCH & CLARK,50307,"2,765.75"
CLG,Standards Board for England,21/05/2009,IT Hardware,IT,KELWAY (UK) LTD,50327,"1,348.95"
CLG,Standards Board for England,21/05/2009,Contract Staff,IVG,RUSSAM GMS,50314,"2,479.69"
CLG,Standards Board for England,21/05/2009,Contract Staff,LEG,SELLICK PARTNERSHIPS,50308,"1,501.16"
CLG,Standards Board for England,21/05/2009,Telephone and Fax - Land line,APE,VODAFONE CORPORATE LTD,50357,24.08
CLG,Standards Board for England,21/05/2009,Telephone and Fax - Land line,CEO,VODAFONE CORPORATE LTD,50357,59
CLG,Standards Board for England,21/05/2009,Telephone and Fax - Land line,COM,VODAFONE CORPORATE LTD,50357,80.33
CLG,Standards Board for England,21/05/2009,Telephone and Fax - Land line,FIN,VODAFONE CORPORATE LTD,50357,24.42
CLG,Standards Board for England,21/05/2009,Telephone and Fax - Land line,GOV,VODAFONE CORPORATE LTD,50357,56.77
CLG,Standards Board for England,21/05/2009,Telephone and Fax - Land line,HR,VODAFONE CORPORATE LTD,50357,48.7
CLG,Standards Board for England,21/05/2009,Telephone and Fax - Land line,IT,VODAFONE CORPORATE LTD,50357,726.76
CLG,Standards Board for England,21/05/2009,Telephone and Fax - Land line,IVG,VODAFONE CORPORATE LTD,50357,348.66
CLG,Standards Board for England,21/05/2009,Telephone and Fax - Land line,LEG,VODAFONE CORPORATE LTD,50357,143.87
CLG,Standards Board for England,21/05/2009,Telephone and Fax - Land line,PAG,VODAFONE CORPORATE LTD,50357,98.09
CLG,Standards Board for England,21/05/2009,Staff Training,GOV,WESTMINSTER EXPLAINED,50350,793.5
CLG,Standards Board for England,22/05/2009,Contract Staff,IVG,RUSSAM GMS,50343,"2,479.69"
CLG,Standards Board for England,25/05/2009,Adjudication Panel Reps,LEG,LANDMARK CHAMBERS,50446,"4,025.00"
CLG,Standards Board for England,25/05/2009,Communications Projects,COM,LOCAL GOVERNMENT ASSOCIATION,50373,920
CLG,Standards Board for England,26/05/2009,Security,FAC,CHUBB ELECTRONIC SECURITY LTD,50420,"5,128.24"
CLG,Standards Board for England,26/05/2009,Repairs & Maintenance,HR,OASIS INTERIOR LANDSCAPING,50419,555.84
CLG,Standards Board for England,26/05/2009,Staff Training,GOV,QUORUM TRAINING LTD,50452,805
CLG,Standards Board for England,27/05/2009,Staff Training,HR,EMAP LIMITED,50454,688.85
CLG,Standards Board for England,27/05/2009,Staff Training,GOV,EMAP LIMITED,50454,688.85
CLG,Standards Board for England,27/05/2009,Off Site Storage,COM,SQUIRREL STORAGE,50453,57.1
CLG,Standards Board for England,27/05/2009,Off Site Storage,FIN,SQUIRREL STORAGE,50453,22.83
CLG,Standards Board for England,27/05/2009,Off Site Storage,HR,SQUIRREL STORAGE,50453,9.02
CLG,Standards Board for England,27/05/2009,Off Site Storage,IVG,SQUIRREL STORAGE,50453,46.41
CLG,Standards Board for England,27/05/2009,Off Site Storage,PAG,SQUIRREL STORAGE,50453,524.75
CLG,Standards Board for England,27/05/2009,Furniture & Fittings,HR,TSK GROUP PLC,50427,"1,392.83"
CLG,Standards Board for England,28/05/2009,Internal Audit Fees,FIN,BENTLEY JENNISON RISK MANAGEME,50456,"2,530.00"
CLG,Standards Board for England,28/05/2009,Communications Projects,COM,CHAPEL PRESS,50435,"8,585.00"
CLG,Standards Board for England,28/05/2009,Postage,HR,PITNEY BOWES FINANCE PLC,50431,"1,196.00"
CLG,Standards Board for England,28/05/2009,IT Software Support,IT,TERMINAL FOUR,50425,624.88
CLG,Standards Board for England,28/05/2009,Communications Projects,COM,THOMPSON BRAND PARTNERS,50460,"5,771.50"
CLG,Standards Board for England,28/05/2009,Recruitment Advertising,CEO,TMP (UK)LTD,50428,"2,170.52"
CLG,Standards Board for England,29/05/2009,Contract Staff,CEO,BADENOCH & CLARK,50417,"2,212.60"
CLG,Standards Board for England,29/05/2009,IT Hardware Repairs & Maintenance,IT,BROOKVEX,50424,"1,725.00"
CLG,Standards Board for England,29/05/2009,Staff Training,GOV,ETC CORP,50451,"1,903.50"
CLG,Standards Board for England,29/05/2009,Contract Staff,LEG,SELLICK PARTNERSHIPS,50416,"1,122.98"
CLG,Standards Board for England,29/05/2009,This Year's Conf Prepayments,COM,THE NEC GROUP,50434,"17,250.00"
CLG,Standards Board for England,01/06/2009,Service Charges,HR,CLEANING NORTHWEST,50671,"1,440.12"
CLG,Standards Board for England,01/06/2009,IT Hardware,IT,KELWAY (UK) LTD,50703,"4,673.60"
CLG,Standards Board for England,01/06/2009,IT Hardware Repairs & Maintenance,IT,KELWAY (UK) LTD,50703,569.25
CLG,Standards Board for England,01/06/2009,Postage,HR,PITNEY BOWES LTD,50667,513
CLG,Standards Board for England,01/06/2009,Contract Staff,IVG,RUSSAM GMS,50669,"2,479.69"
CLG,Standards Board for England,01/06/2009,Contract Staff,IVG,RUSSAM GMS,50668,"1,983.75"
CLG,Standards Board for England,02/06/2009,IT Software,IT,VODAFONE CORPORATE LTD,50675,"3,496.00"
CLG,Standards Board for England,03/06/2009,Travel - Train,COM,CAPITA BUSINESS TRAVEL,50705,198.45
CLG,Standards Board for England,03/06/2009,Travel - Train,HR,CAPITA BUSINESS TRAVEL,50705,337.17
CLG,Standards Board for England,03/06/2009,Travel - Train,IVG,CAPITA BUSINESS TRAVEL,50705,"1,254.97"
CLG,Standards Board for England,03/06/2009,Travel - Train,PAG,CAPITA BUSINESS TRAVEL,50705,"1,610.76"
CLG,Standards Board for England,03/06/2009,General Travel - Air,LEG,CAPITA BUSINESS TRAVEL,50705,175.44
CLG,Standards Board for England,03/06/2009,Accommodation,COM,CAPITA BUSINESS TRAVEL,50705,615
CLG,Standards Board for England,03/06/2009,Accommodation,GOV,CAPITA BUSINESS TRAVEL,50705,460
CLG,Standards Board for England,03/06/2009,Accommodation,IT,CAPITA BUSINESS TRAVEL,50705,199.35
CLG,Standards Board for England,03/06/2009,Accommodation,IVG,CAPITA BUSINESS TRAVEL,50705,"1,203.78"
CLG,Standards Board for England,03/06/2009,Accommodation,LEG,CAPITA BUSINESS TRAVEL,50705,666.39
CLG,Standards Board for England,03/06/2009,Board Travel & Accommodation,BRD,CAPITA BUSINESS TRAVEL,50705,-113.35
CLG,Standards Board for England,03/06/2009,Corporate Training,HR,CAPITA BUSINESS TRAVEL,50705,91.05
CLG,Standards Board for England,03/06/2009,Travel - Train,FIN,CAPITA BUSINESS TRAVEL,50705,163.09
CLG,Standards Board for England,03/06/2009,Travel - Train,IT,CAPITA BUSINESS TRAVEL,50705,509.95
CLG,Standards Board for England,03/06/2009,Travel - Train,CEO,CAPITA BUSINESS TRAVEL,50705,"1,087.52"
CLG,Standards Board for England,03/06/2009,Travel - Train,GOV,CAPITA BUSINESS TRAVEL,50705,192.23
CLG,Standards Board for England,03/06/2009,General Travel - Air,IVG,CAPITA BUSINESS TRAVEL,50705,402.96
CLG,Standards Board for England,03/06/2009,Press Office Services,COM,DURRANTS PRESS CUTTINGS LTD,50699,"2,320.70"
CLG,Standards Board for England,03/06/2009,IT Hardware,IT,VODAFONE CORPORATE LTD,50709,828
CLG,Standards Board for England,04/06/2009,This Year's Conf Prepayments,COM,EC GROUP,50711,"1,847.60"
CLG,Standards Board for England,04/06/2009,Service Charges,HR,JD WILLIAMS,50690,"3,421.51"
CLG,Standards Board for England,04/06/2009,Internet Charges,IST,KINGSTON COMMUNICATIONS,50679,"3,450.00"
CLG,Standards Board for England,04/06/2009,Contract Staff,LEG,SELLICK PARTNERSHIPS,50683,"1,119.11"
CLG,Standards Board for England,05/06/2009,Contract Staff,CEO,BADENOCH & CLARK,50685,"2,212.60"
CLG,Standards Board for England,07/06/2009,Rates,HR,MANCHESTER CITY COUNCIL,50042,"5,416.00"
CLG,Standards Board for England,08/06/2009,Corporate Training,HR,REED TRAINING,50759,"1,955.00"
CLG,Standards Board for England,08/06/2009,Professional Fees,IT,VIZUAL BUSINESS TOOLS PLC,50791,"3,674.25"
CLG,Standards Board for England,09/06/2009,Corporate Identity Project,COM,THOMPSON BRAND PARTNERS,50789,"1,592.75"
CLG,Standards Board for England,09/06/2009,Corporate Identity Project,COM,THOMPSON BRAND PARTNERS,50788,"5,635.00"
CLG,Standards Board for England,09/06/2009,Corporate Identity Project,COM,THOMPSON BRAND PARTNERS,50787,"13,765.50"
CLG,Standards Board for England,11/06/2009,Professional Subscriptions,LEG,BRITISH & IRISH OMBUDSMAN ASS.,50775,750
CLG,Standards Board for England,11/06/2009,Guidance/Advice - Production,COM,K INTERNATIONAL,50786,919.15
CLG,Standards Board for England,11/06/2009,Internet Charges,IT,NODE 4 LIMITED,50782,799.25
CLG,Standards Board for England,11/06/2009,Contract Staff,LEG,SELLICK PARTNERSHIPS,50755,"1,497.30"
CLG,Standards Board for England,15/06/2009,Commissioned Research,PAG,BMG RESEARCH,50772,"11,690.90"
CLG,Standards Board for England,16/06/2009,Commissioned Research,PAG,CARDIFF UNIVERISTY,50771,"51,294.27"
CLG,Standards Board for England,17/06/2009,Commissioned Research,PAG,BMG RESEARCH,50968,"22,396.25"
CLG,Standards Board for England,17/06/2009,IT Hardware Repairs & Maintenance,IT,CONVERGENT NETWORK SOLUTIONS L,50844,"3,663.57"
CLG,Standards Board for England,17/06/2009,Professional Fees,HR,WOLTERS KLUWER,50847,"5,060.00"
CLG,Standards Board for England,19/06/2009,Contract Staff,CEO,BADENOCH & CLARK,50843,"2,765.75"
CLG,Standards Board for England,19/06/2009,Contract Staff,LEG,SELLICK PARTNERSHIPS,50842,"1,501.16"
CLG,Standards Board for England,22/06/2009,Staff Conference,COM,THE LOWRY CENTRE,50955,"6,717.93"
CLG,Standards Board for England,22/06/2009,Telephone and Fax - Land line,APE,VODAFONE CORPORATE LTD,50932,23.95
CLG,Standards Board for England,22/06/2009,Telephone and Fax - Land line,CEO,VODAFONE CORPORATE LTD,50932,72.46
CLG,Standards Board for England,22/06/2009,Telephone and Fax - Land line,COM,VODAFONE CORPORATE LTD,50932,80.2
CLG,Standards Board for England,22/06/2009,Telephone and Fax - Land line,FIN,VODAFONE CORPORATE LTD,50932,24.71
CLG,Standards Board for England,22/06/2009,Telephone and Fax - Land line,GOV,VODAFONE CORPORATE LTD,50932,88
CLG,Standards Board for England,22/06/2009,Telephone and Fax - Land line,HR,VODAFONE CORPORATE LTD,50932,48.87
CLG,Standards Board for England,22/06/2009,Telephone and Fax - Land line,IT,VODAFONE CORPORATE LTD,50932,808.04
CLG,Standards Board for England,22/06/2009,Telephone and Fax - Land line,IVG,VODAFONE CORPORATE LTD,50932,353.34
CLG,Standards Board for England,22/06/2009,Telephone and Fax - Land line,LEG,VODAFONE CORPORATE LTD,50932,158.57
CLG,Standards Board for England,22/06/2009,Telephone and Fax - Land line,PAG,VODAFONE CORPORATE LTD,50932,76.91
CLG,Standards Board for England,23/06/2009,IT Software Support,IT,CENTRE POINT SOFTWARE LTD,50900,690
CLG,Standards Board for England,23/06/2009,IT Software Support,IST,CENTRE POINT SOFTWARE LTD,50899,"2,448.35"
CLG,Standards Board for England,23/06/2009,Rent,FAC,N BROWN FUNDING LTD,50857,"50,657.50"
CLG,Standards Board for England,26/06/2009,Contract Staff,CEO,BADENOCH & CLARK,50959,"2,765.75"
CLG,Standards Board for England,26/06/2009,Contract Staff,LEG,SELLICK PARTNERSHIPS,50958,"1,509.38"
CLG,Standards Board for England,29/06/2009,Contract Staff,CEO,BADENOCH & CLARK,51004,"2,765.75"
CLG,Standards Board for England,30/06/2009,Postage,HR,PITNEY BOWES LTD,50952,513
CLG,Standards Board for England,30/06/2009,Contract Staff,IVG,RUSSAM GMS,51003,"2,479.69"
CLG,Standards Board for England,30/06/2009,Contract Staff,IVG,RUSSAM GMS,51002,"2,479.69"
CLG,Standards Board for England,30/06/2009,Contract Staff,IVG,RUSSAM GMS,51001,"1,983.75"
CLG,Standards Board for England,30/06/2009,Contract Staff,IVG,RUSSAM GMS,51000,"2,231.72"
CLG,Standards Board for England,01/07/2009,Communications Projects,EXT,JACARANDA,51140,"33,229.19"
CLG,Standards Board for England,01/07/2009,Professional Subscriptions,BRD,NEIL STEWART ASSOCIATES,51137,688.85
CLG,Standards Board for England,01/07/2009,Legal Fees,REP,WEIGHTMANS LLP,51183,"9,081.18"
CLG,Standards Board for England,02/07/2009,Service Charges,FAC,CLEANING NORTHWEST,51114,"1,440.12"
CLG,Standards Board for England,02/07/2009,Miscellaneous Expenses,HR,FIRST CLASS REMOVALS,51542,"4,750.00"
CLG,Standards Board for England,03/07/2009,Contract Staff,CEO,BADENOCH & CLARK,51118,"2,765.75"
CLG,Standards Board for England,03/07/2009,Internal Audit Fees,FIN,BENTLEY JENNISON RISK MANAGEME,51125,"2,911.80"
CLG,Standards Board for England,03/07/2009,Press Office Services,COM,DURRANTS PRESS CUTTINGS LTD,51131,"2,745.51"
CLG,Standards Board for England,03/07/2009,Contract Staff,LEG,SELLICK PARTNERSHIPS,51117,"1,505.51"
CLG,Standards Board for England,06/07/2009,Travel - Train,COM,CAPITA BUSINESS TRAVEL,51223,351.07
CLG,Standards Board for England,06/07/2009,Travel - Train,EXT,CAPITA BUSINESS TRAVEL,51223,224.7
CLG,Standards Board for England,06/07/2009,Travel - Train,GUI,CAPITA BUSINESS TRAVEL,51223,13
CLG,Standards Board for England,06/07/2009,Travel - Train,IST,CAPITA BUSINESS TRAVEL,51223,531.1
CLG,Standards Board for England,06/07/2009,Travel - Train,KNO,CAPITA BUSINESS TRAVEL,51223,590.67
CLG,Standards Board for England,06/07/2009,Travel - Train,REM,CAPITA BUSINESS TRAVEL,51223,13
CLG,Standards Board for England,06/07/2009,Travel - Train,REP,CAPITA BUSINESS TRAVEL,51223,"2,409.64"
CLG,Standards Board for England,06/07/2009,Travel - Train,SOL,CAPITA BUSINESS TRAVEL,51223,13
CLG,Standards Board for England,06/07/2009,Accommodation,ESO,CAPITA BUSINESS TRAVEL,51223,125.35
CLG,Standards Board for England,06/07/2009,Accommodation,IST,CAPITA BUSINESS TRAVEL,51223,134.77
CLG,Standards Board for England,06/07/2009,Accommodation,KNO,CAPITA BUSINESS TRAVEL,51223,78.3
CLG,Standards Board for England,06/07/2009,Accommodation,PST,CAPITA BUSINESS TRAVEL,51223,252.52
CLG,Standards Board for England,06/07/2009,Accommodation,REP,CAPITA BUSINESS TRAVEL,51223,939.53
CLG,Standards Board for England,06/07/2009,Board Travel & Accommodation,BRD,CAPITA BUSINESS TRAVEL,51223,152.01
CLG,Standards Board for England,06/07/2009,LGA Conference Exhibition,COM,CAPITA BUSINESS TRAVEL,51223,166.77
CLG,Standards Board for England,06/07/2009,Travel - Train,FIN,CAPITA BUSINESS TRAVEL,51223,234
CLG,Standards Board for England,06/07/2009,Travel - Train,BRD,CAPITA BUSINESS TRAVEL,51223,114.45
CLG,Standards Board for England,06/07/2009,Travel - Train,CEO,CAPITA BUSINESS TRAVEL,51223,445.43
CLG,Standards Board for England,06/07/2009,Travel - Train,ESO,CAPITA BUSINESS TRAVEL,51223,267.65
CLG,Standards Board for England,06/07/2009,Travel - Train,STR,CAPITA BUSINESS TRAVEL,51223,272.57
CLG,Standards Board for England,06/07/2009,IT Hardware,IT,KELWAY (UK) LTD,51194,"2,490.90"
CLG,Standards Board for England,06/07/2009,Internet Charges,IST,NODE 4 LIMITED,51229,799.25
CLG,Standards Board for England,06/07/2009,Photocopier Leasing Charges,FAC,OCE FINANCE,51141,684.25
CLG,Standards Board for England,06/07/2009,Corporate Training,HR,REED TRAINING,51130,"1,449.00"
CLG,Standards Board for England,06/07/2009,Corporate Training,HR,REED TRAINING,51149,"2,932.50"
CLG,Standards Board for England,07/07/2009,Rates,FAC,MANCHESTER CITY COUNCIL,50042,"5,416.00"
CLG,Standards Board for England,08/07/2009,IT Hardware Repairs & Maintenance,IST,DATA SPACE UK,51195,511.46
CLG,Standards Board for England,08/07/2009,Printing,PUB,EC GROUP,51257,"2,905.00"
CLG,Standards Board for England,08/07/2009,Printing,PUB,EC GROUP,51257,"1,486.00"
CLG,Standards Board for England,08/07/2009,Professional Fees,HRC,EVERSHEDS,51218,"10,270.07"
CLG,Standards Board for England,08/07/2009,Professional Fees,REG,EVERSHEDS,51218,"10,270.08"
CLG,Standards Board for England,08/07/2009,Staff Training,PAG,SOLACE ENTERPRISES,51222,632.5
CLG,Standards Board for England,08/07/2009,Commissioned Research,KNO,UNIVERSITY OF HULL,51254,"17,250.00"
CLG,Standards Board for England,08/07/2009,Professional Fees,HRC,WOLTERS KLUWER,51185,598
CLG,Standards Board for England,09/07/2009,Contract Staff,REP,SELLICK PARTNERSHIPS,51216,"1,501.16"
CLG,Standards Board for England,09/07/2009,Periodicals,HRC,SWEET AND MAXWELL,51220,580.58
CLG,Standards Board for England,09/07/2009,Placement Fee,EXT,THE RECRUITMENT BUSINESS,51253,824.16
CLG,Standards Board for England,10/07/2009,Contract Staff,CEO,BADENOCH & CLARK,51190,"2,765.75"
CLG,Standards Board for England,10/07/2009,Adjudication Panel Reps,REP,KINGS CHAMBERS,51197,"5,231.13"
CLG,Standards Board for England,13/07/2009,This Year's Conf Prepayments,COM,HYATT REGENCY BIRMINGHAM,51542,"7,616.00"
CLG,Standards Board for England,13/07/2009,Contract Staff,REP,RUSSAM GMS,51188,"2,479.69"
CLG,Standards Board for England,14/07/2009,Printing,IST,KELWAY (UK) LTD,51344,"1,957.22"
CLG,Standards Board for England,14/07/2009,Publications,PUB,PDC COPYPRINT,51342,"1,631.00"
CLG,Standards Board for England,15/07/2009,Telephone and Fax - Land line,IST,BRITISH TELECOMMUNICATIONS PLC,49737,"2,472.60"
CLG,Standards Board for England,16/07/2009,Communications Projects,COM,PRO'TEAN DESIGN,51338,"4,554.00"
CLG,Standards Board for England,16/07/2009,Corporate Identity Project,PUB,PRO'TEAN DESIGN,51338,257.6
CLG,Standards Board for England,17/07/2009,Contract Staff,CEO,BADENOCH & CLARK,51314,"2,765.75"
CLG,Standards Board for England,17/07/2009,Staff Training,IST,REMARC TECHNOLOGIES,51321,"1,598.50"
CLG,Standards Board for England,17/07/2009,Placement Fee,HRC,SEARCH RECRUITMENT,51320,"3,089.82"
CLG,Standards Board for England,20/07/2009,LGA Conference Exhibition,COM,PRO'TEAN DESIGN,51420,"6,104.98"
CLG,Standards Board for England,20/07/2009,Events at Conferences,COM,SOLACE ENTERPRISES,51394,"4,600.00"
CLG,Standards Board for England,22/07/2009,IT Hardware,IT,KELWAY (UK) LTD,51400,"2,075.75"
CLG,Standards Board for England,22/07/2009,Events at Conferences,COM,LIBERAL DEMOCRATS,51542,280
CLG,Standards Board for England,22/07/2009,Events at Conferences,COM,LIBERAL DEMOCRATS,51542,280
CLG,Standards Board for England,22/07/2009,Professional Fees,FIN,TAMESIDE,51395,539.6
CLG,Standards Board for England,22/07/2009,This Year's Conf Prepayments,COM,THE NEC GROUP,51387,"47,515.05"
CLG,Standards Board for England,22/07/2009,Telephone and Fax - Land line,APE,VODAFONE CORPORATE LTD,51384,23.9
CLG,Standards Board for England,22/07/2009,Mobile Telephone,CEO,VODAFONE CORPORATE LTD,51384,40.04
CLG,Standards Board for England,22/07/2009,Mobile Telephone,ESO,VODAFONE CORPORATE LTD,51384,76.16
CLG,Standards Board for England,22/07/2009,Mobile Telephone,EXT,VODAFONE CORPORATE LTD,51384,26.85
CLG,Standards Board for England,22/07/2009,Mobile Telephone,FAC,VODAFONE CORPORATE LTD,51384,23.94
CLG,Standards Board for England,22/07/2009,Mobile Telephone,GUI,VODAFONE CORPORATE LTD,51384,25.1
CLG,Standards Board for England,22/07/2009,Mobile Telephone,HRC,VODAFONE CORPORATE LTD,51384,24.67
CLG,Standards Board for England,22/07/2009,Mobile Telephone,IST,VODAFONE CORPORATE LTD,51384,737.88
CLG,Standards Board for England,22/07/2009,Mobile Telephone,KNO,VODAFONE CORPORATE LTD,51384,25.62
CLG,Standards Board for England,22/07/2009,Mobile Telephone,PER,VODAFONE CORPORATE LTD,51384,85.36
CLG,Standards Board for England,22/07/2009,Mobile Telephone,PLN,VODAFONE CORPORATE LTD,51384,23.95
CLG,Standards Board for England,22/07/2009,Mobile Telephone,PST,VODAFONE CORPORATE LTD,51384,25.94
CLG,Standards Board for England,22/07/2009,Mobile Telephone,REG,VODAFONE CORPORATE LTD,51384,23.89
CLG,Standards Board for England,22/07/2009,Mobile Telephone,REP,VODAFONE CORPORATE LTD,51384,429.46
CLG,Standards Board for England,22/07/2009,Mobile Telephone,STA,VODAFONE CORPORATE LTD,51384,23.9
CLG,Standards Board for England,22/07/2009,Mobile Telephone,STR,VODAFONE CORPORATE LTD,51384,28
CLG,Standards Board for England,22/07/2009,Mobile Telephone,RSK,VODAFONE CORPORATE LTD,51384,23.91
CLG,Standards Board for England,22/07/2009,Mobile Telephone,COM,VODAFONE CORPORATE LTD,51384,53.07
CLG,Standards Board for England,22/07/2009,Mobile Telephone,FIN,VODAFONE CORPORATE LTD,51384,25.4
CLG,Standards Board for England,23/07/2009,Contract Staff,STA,SELLICK PARTNERSHIPS,51393,754.69
CLG,Standards Board for England,23/07/2009,Contract Staff,REG,SELLICK PARTNERSHIPS,51393,754.69
CLG,Standards Board for England,23/07/2009,Contract Staff,STA,SELLICK PARTNERSHIPS,51392,567.53
CLG,Standards Board for England,23/07/2009,Contract Staff,REG,SELLICK PARTNERSHIPS,51392,567.52
CLG,Standards Board for England,23/07/2009,Staff Training,REG,SOLACE,51436,575
CLG,Standards Board for England,23/07/2009,Corporate Identity Project,EXT,THOMPSON BRAND PARTNERS,51428,"9,794.90"
CLG,Standards Board for England,23/07/2009,Corporate Identity Project,EXT,THOMPSON BRAND PARTNERS,51429,"9,499.00"
CLG,Standards Board for England,23/07/2009,Staff Conference,EXT,THOMPSON BRAND PARTNERS,51430,"10,602.39"
CLG,Standards Board for England,24/07/2009,Contract Staff,CEO,BADENOCH & CLARK,51396,"2,765.75"
CLG,Standards Board for England,24/07/2009,Staff Training,REG,CENTRE FOR EFFECTIVE DISPUTE R,51402,"3,277.50"
CLG,Standards Board for England,27/07/2009,Corporate Training,HR,REED TRAINING,51419,"2,932.50"
CLG,Standards Board for England,27/07/2009,This Year's Conf Prepayments,HRC,REED TRAINING,51418,"4,278.00"
CLG,Standards Board for England,27/07/2009,Contract Staff,REG,RUSSAM GMS,51380,"2,479.69"
CLG,Standards Board for England,27/07/2009,Contract Staff,REG,RUSSAM GMS,51381,"2,355.71"
CLG,Standards Board for England,28/07/2009,Postage,FAC,PITNEY BOWES LTD,51492,513
CLG,Standards Board for England,28/07/2009,Contract Staff,REG,RUSSAM GMS,51379,"2,479.69"
CLG,Standards Board for England,28/07/2009,Furniture & Fittings,HR,TSK GROUP PLC,51493,"2,089.24"
CLG,Standards Board for England,29/07/2009,Repairs & Maintenance,FAC,JD WILLIAMS,51491,534.75
CLG,Standards Board for England,29/07/2009,Audit Fees,FIN,NATIONAL AUDIT OFFICE,51431,"32,500.00"
CLG,Standards Board for England,29/07/2009,Photocopier,IVG,RNIB,51495,"1,473.11"
CLG,Standards Board for England,29/07/2009,Photocopier,REP,RNIB,51495,5.06
CLG,Standards Board for England,31/07/2009,Contract Staff,CEO,BADENOCH & CLARK,51488,"2,765.75"
CLG,Standards Board for England,31/07/2009,This Year's Conf Prepayments,COM,HOTEL DU VIN (BIRMINGHAM),51546,"3,645.13"
CLG,Standards Board for England,31/07/2009,Photocopier,FAC,OCE (UK) LTD ,51508,"1,190.40"
CLG,Standards Board for England,31/07/2009,Staff Training,IST,REMARC TECHNOLOGIES,51516,"1,835.40"
CLG,Standards Board for England,31/07/2009,Contract Staff,STA,SELLICK PARTNERSHIPS,51489,752.76
CLG,Standards Board for England,31/07/2009,Contract Staff,REG,SELLICK PARTNERSHIPS,51489,752.75
CLG,Standards Board for England,01/08/2009,IT Software Support,IST,BIBBY FACTORS SUSSEX LTD,51671,695.05
CLG,Standards Board for England,03/08/2009,Professional Fees,HRC,BEAMANS MANAGEMENT CONSULTANTS,51684,"10,604.04"
CLG,Standards Board for England,03/08/2009,Professional Fees,FIN,BENTLEY JENNISON RISK MANAGEME,51668,"7,141.50"
CLG,Standards Board for England,03/08/2009,Printing,COM,CHAPEL PRESS,51685,678.5
CLG,Standards Board for England,03/08/2009,IT Hardware Repairs & Maintenance,IST,COMPUTER AID INTERNATIONAL,51662,701.5
CLG,Standards Board for England,03/08/2009,Professional Subscriptions,REP,I-CD PUBLISHING LIMITED,51686,"1,092.50"
CLG,Standards Board for England,03/08/2009,IT Software Support,IST,XCMS SOLUTIONS LTD,51679,632.5
CLG,Standards Board for England,03/08/2009,IT Software Support,IST,XCMS SOLUTIONS LTD,51680,632.5
CLG,Standards Board for England,03/08/2009,IT Software Support,IST,XCMS SOLUTIONS LTD,51677,632.5
CLG,Standards Board for England,03/08/2009,Professional Fees,IST,XCMS SOLUTIONS LTD,51681,"9,868.14"
CLG,Standards Board for England,03/08/2009,Subsistence,IST,XCMS SOLUTIONS LTD,51700,222.27
CLG,Standards Board for England,03/08/2009,Professional Fees,IST,XCMS SOLUTIONS LTD,51700,"8,050.00"
CLG,Standards Board for England,03/08/2009,Subsistence,IST,XCMS SOLUTIONS LTD,51678,101.13
CLG,Standards Board for England,03/08/2009,Professional Fees,IST,XCMS SOLUTIONS LTD,51678,"7,662.67"
CLG,Standards Board for England,03/08/2009,Professional Fees,IST,XCMS SOLUTIONS LTD,51676,"9,411.51"
CLG,Standards Board for England,04/08/2009,Commissioned Research,KNO,GFK NOP SOCIAL RESEARCH,51694,"16,042.50"
CLG,Standards Board for England,04/08/2009,IT Hardware,IST,KELWAY (UK) LTD,51661,"1,634.15"
CLG,Standards Board for England,05/08/2009,Travel - Train,COM,CAPITA BUSINESS TRAVEL,51695,476.25
CLG,Standards Board for England,05/08/2009,Travel - Train,IST,CAPITA BUSINESS TRAVEL,51695,159.6
CLG,Standards Board for England,05/08/2009,Travel - Train,KNO,CAPITA BUSINESS TRAVEL,51695,322.98
CLG,Standards Board for England,05/08/2009,Travel - Train,RSK,CAPITA BUSINESS TRAVEL,51695,108
CLG,Standards Board for England,05/08/2009,LGA Conference Exhibition,COM,CAPITA BUSINESS TRAVEL,51695,745.85
CLG,Standards Board for England,05/08/2009,Travel - Train,FIN,CAPITA BUSINESS TRAVEL,51695,343.82
CLG,Standards Board for England,05/08/2009,Travel - Train,REG,CAPITA BUSINESS TRAVEL,51695,"2,496.06"
CLG,Standards Board for England,05/08/2009,Travel - Train,BRD,CAPITA BUSINESS TRAVEL,51695,559.9
CLG,Standards Board for England,05/08/2009,Travel - Train,CEO,CAPITA BUSINESS TRAVEL,51695,170.57
CLG,Standards Board for England,05/08/2009,Travel - Train,STR,CAPITA BUSINESS TRAVEL,51695,964.75
CLG,Standards Board for England,05/08/2009,General Travel - Air,REG,CAPITA BUSINESS TRAVEL,51695,420.96
CLG,Standards Board for England,05/08/2009,Accommodation,REG,CAPITA BUSINESS TRAVEL,51695,905.3
CLG,Standards Board for England,05/08/2009,Guidance/Advice - Production,PUB,CHAPEL PRESS,51673,"3,996.00"
CLG,Standards Board for England,05/08/2009,Service Charges,FAC,CLEANING NORTHWEST,50900,"1,440.12"
CLG,Standards Board for England,05/08/2009,Internet Charges,IST,KINGSTON COMMUNICATIONS,51669,"2,898.00"
CLG,Standards Board for England,05/08/2009,Communications Projects,COM,NEIL STEWART ASSOCIATES,51938,688.85
CLG,Standards Board for England,06/08/2009,Internet Charges,IST,NODE 4 LIMITED,51651,799.25
CLG,Standards Board for England,07/08/2009,Contract Staff,CEO,BADENOCH & CLARK,51655,"2,765.75"
CLG,Standards Board for England,07/08/2009,Staff Training,FIN,BPP PROFESSIONAL EDUCATION,51683,"2,065.00"
CLG,Standards Board for England,07/08/2009,Rates,FAC,MANCHESTER CITY COUNCIL,50042,"5,416.00"
CLG,Standards Board for England,07/08/2009,Placement Fee,PRO,SEARCH RECRUITMENT,51654,"2,920.54"
CLG,Standards Board for England,07/08/2009,Placement Fee,GUI,SEARCH RECRUITMENT,51653,"1,293.96"
CLG,Standards Board for England,09/08/2009,Internet Charges,IST,KINGSTON COMMUNICATIONS,51773,"3,500.31"
CLG,Standards Board for England,09/08/2009,Internet Charges,IST,KINGSTON COMMUNICATIONS,51773,"1,426.00"
CLG,Standards Board for England,10/08/2009,Events at Conferences,COM,BRINTEX,51780,"1,238.90"
CLG,Standards Board for England,10/08/2009,Professional Fees,HRC,EVERSHEDS,51752,"3,200.05"
CLG,Standards Board for England,10/08/2009,Professional Fees,REG,EVERSHEDS,51752,"3,200.06"
CLG,Standards Board for England,10/08/2009,Internet Charges,IST,KINGSTON COMMUNICATIONS,51657,"2,731.25"
CLG,Standards Board for England,11/08/2009,Periodicals,COM,EMAP LIMITED,51788,"19,614.40"
CLG,Standards Board for England,11/08/2009,Corporate Training,HR,REED TRAINING,51751,"1,955.00"
CLG,Standards Board for England,12/08/2009,Events at Conferences,COM,LOCAL GOVERNMENT GROUP,51779,"1,400.00"
CLG,Standards Board for England,12/08/2009,Photocopier,FAC,OCE (UK) LTD ,51731,"1,043.14"
CLG,Standards Board for England,13/08/2009,This Year's Conf Prepayments,COM,BENEDICT BUSINESS RESOURCES,51787,"10,741.00"
CLG,Standards Board for England,13/08/2009,Communications Projects,COM,BENEDICT BUSINESS RESOURCES,51778,"1,908.17"
CLG,Standards Board for England,13/08/2009,Professional Fees,CEO,PA CONSULTING,51783,"20,700.00"
CLG,Standards Board for England,13/08/2009,Contract Staff,REP,SELLICK PARTNERSHIPS,51742,754.69
CLG,Standards Board for England,13/08/2009,Contract Staff,STA,SELLICK PARTNERSHIPS,51742,754.69
CLG,Standards Board for England,14/08/2009,Contract Staff,CEO,BADENOCH & CLARK,51740,"2,765.75"
CLG,Standards Board for England,14/08/2009,Professional Fees,FIN,BENTLEY JENNISON RISK MANAGEME,51761,"1,811.25"
CLG,Standards Board for England,14/08/2009,Press Office Services,COM,GOVNET COMMUNICATIONS,51766,"2,875.00"
CLG,Standards Board for England,17/08/2009,Press Office Services,COM,DURRANTS PRESS CUTTINGS LTD,51764,"2,590.38"
CLG,Standards Board for England,17/08/2009,IT Software,IST,KELWAY (UK) LTD,51781,201.25
CLG,Standards Board for England,17/08/2009,IT Software Support,IST,KELWAY (UK) LTD,51781,400.2
CLG,Standards Board for England,17/08/2009,Internet Charges,IST,KINGSTON COMMUNICATIONS,51770,552
CLG,Standards Board for England,18/08/2009,External Meeting Room Hire,BRD,THE MIDLAND HOTEL,51750,"1,200.00"
CLG,Standards Board for England,19/08/2009,IT Software Support,IST,CONVERGENT NETWORK SOLUTIONS L,51848,"1,076.99"
CLG,Standards Board for England,19/08/2009,Contract Staff,REP,RUSSAM GMS,51851,"2,355.71"
CLG,Standards Board for England,19/08/2009,Contract Staff,REP,RUSSAM GMS,51853,"2,479.69"
CLG,Standards Board for England,19/08/2009,Contract Staff,REP,RUSSAM GMS,51852,"2,479.69"
CLG,Standards Board for England,19/08/2009,Placement Fee,FAC,SEARCH RECRUITMENT,51856,603.75
CLG,Standards Board for England,19/08/2009,Telephone and Fax - Land line,APE,VODAFONE CORPORATE LTD,51847,24.13
CLG,Standards Board for England,19/08/2009,Mobile Telephone,CEO,VODAFONE CORPORATE LTD,51847,35.36
CLG,Standards Board for England,19/08/2009,Mobile Telephone,ESO,VODAFONE CORPORATE LTD,51847,78.53
CLG,Standards Board for England,19/08/2009,Mobile Telephone,EXT,VODAFONE CORPORATE LTD,51847,25.24
CLG,Standards Board for England,19/08/2009,Mobile Telephone,FAC,VODAFONE CORPORATE LTD,51847,24.13
CLG,Standards Board for England,19/08/2009,Mobile Telephone,GUI,VODAFONE CORPORATE LTD,51847,24.49
CLG,Standards Board for England,19/08/2009,Mobile Telephone,HRC,VODAFONE CORPORATE LTD,51847,24.12
CLG,Standards Board for England,19/08/2009,Mobile Telephone,IST,VODAFONE CORPORATE LTD,51847,745.52
CLG,Standards Board for England,19/08/2009,Mobile Telephone,KNO,VODAFONE CORPORATE LTD,51847,25.36
CLG,Standards Board for England,19/08/2009,Mobile Telephone,PER,VODAFONE CORPORATE LTD,51847,48.27
CLG,Standards Board for England,19/08/2009,Mobile Telephone,PLN,VODAFONE CORPORATE LTD,51847,24.18
CLG,Standards Board for England,19/08/2009,Mobile Telephone,PST,VODAFONE CORPORATE LTD,51847,24.54
CLG,Standards Board for England,19/08/2009,Mobile Telephone,REG,VODAFONE CORPORATE LTD,51847,24.74
CLG,Standards Board for England,19/08/2009,Mobile Telephone,REP,VODAFONE CORPORATE LTD,51847,548.72
CLG,Standards Board for England,19/08/2009,Mobile Telephone,STA,VODAFONE CORPORATE LTD,51847,24.13
CLG,Standards Board for England,19/08/2009,Mobile Telephone,STR,VODAFONE CORPORATE LTD,51847,30.3
CLG,Standards Board for England,19/08/2009,Mobile Telephone,RSK,VODAFONE CORPORATE LTD,51847,24.14
CLG,Standards Board for England,19/08/2009,Mobile Telephone,COM,VODAFONE CORPORATE LTD,51847,54.44
CLG,Standards Board for England,19/08/2009,Mobile Telephone,FIN,VODAFONE CORPORATE LTD,51847,25.27
CLG,Standards Board for England,20/08/2009,Printing,IST,KELWAY (UK) LTD,51854,"1,006.25"
CLG,Standards Board for England,21/08/2009,Placement Fee,STA,SEARCH RECRUITMENT,51873,"1,426.00"
CLG,Standards Board for England,24/08/2009,Events at Conferences,COM,NALC,51874,"4,600.00"
CLG,Standards Board for England,24/08/2009,Contract Staff,FIN,SEARCH RECRUITMENT,51845,"1,623.63"
CLG,Standards Board for England,25/08/2009,Recruitment Advertising,IT,CAPITA RESOURCING,51967,"1,638.75"
CLG,Standards Board for England,25/08/2009,Placement Fee,REP,RUSSAM GMS,51855,"11,852.18"
CLG,Standards Board for England,26/08/2009,Legal Fees,REP,ARDEN CHAMBERS,51913,"5,554.50"
CLG,Standards Board for England,26/08/2009,Legal Fees,REP,ARDEN CHAMBERS,52119,"3,657.00"
CLG,Standards Board for England,26/08/2009,Communications Projects,COM,EMAP LIMITED,51953,"24,380.00"
CLG,Standards Board for England,26/08/2009,Postage,FAC,PITNEY BOWES LTD,51968,513
CLG,Standards Board for England,27/08/2009,Repairs & Maintenance,FAC,OASIS INTERIOR LANDSCAPING,51911,555.84
CLG,Standards Board for England,28/08/2009,Contract Staff,CEO,BADENOCH & CLARK,51949,"2,212.60"
CLG,Standards Board for England,28/08/2009,Service Charges,FAC,CLEANING NORTHWEST,51909,"1,440.12"
CLG,Standards Board for England,28/08/2009,Stationery,FAC,EGAN REID STATIONERY CO,51961,524.43
CLG,Standards Board for England,28/08/2009,General Office Consumables,FAC,EGAN REID STATIONERY CO,51961,52.39
CLG,Standards Board for England,28/08/2009,Health & Safety,FAC,EGAN REID STATIONERY CO,51961,123.15
CLG,Standards Board for England,28/08/2009,Postage - Franking machine finance costs,FAC,PITNEY BOWES FINANCE PLC,50431,"1,196.00"
CLG,Standards Board for England,28/08/2009,Contract Staff,FIN,SEARCH RECRUITMENT,51948,"1,518.58"
CLG,Standards Board for England,31/08/2009,Contract Staff,CEO,BADENOCH & CLARK,51962,"2,212.60"
CLG,Standards Board for England,31/08/2009,Press Office Services,COM,DURRANTS PRESS CUTTINGS LTD,52122,"1,998.01"
CLG,Standards Board for England,31/08/2009,This Year's Conf Prepayments,COM,HYATT REGENCY BIRMINGHAM,51954,"9,520.00"
CLG,Standards Board for England,31/08/2009,IT Software Support,IST,"NCCC GROUP,ESCROW SOLUTIONS",52120,868.25
CLG,Standards Board for England,31/08/2009,Professional Fees,REP,PA CONSULTING,51952,"26,841.00"
CLG,Standards Board for England,31/08/2009,Events at Conferences,COM,SOLACE ENTERPRISES,51970,546.25
CLG,Standards Board for England,01/09/2009,Corporate Identity Project,PUB,BIG,52151,657.8
CLG,Standards Board for England,01/09/2009,Miscellaneous Expenses,FIN,CAREER ENERGY,52191,750
CLG,Standards Board for England,01/09/2009,Staff Training,FAC,FALCONBURY LTD,52150,559
CLG,Standards Board for England,01/09/2009,Staff Training,COM,REED TRAINING,52157,"1,449.00"
CLG,Standards Board for England,02/09/2009,Travel - Train,COM,CAPITA BUSINESS TRAVEL,52160,81.9
CLG,Standards Board for England,02/09/2009,Travel - Train,GUI,CAPITA BUSINESS TRAVEL,52160,285.9
CLG,Standards Board for England,02/09/2009,Travel - Train,IST,CAPITA BUSINESS TRAVEL,52160,123.04
CLG,Standards Board for England,02/09/2009,Travel - Train,IST,CAPITA BUSINESS TRAVEL,52160,539.36
CLG,Standards Board for England,02/09/2009,Travel - Train,KNO,CAPITA BUSINESS TRAVEL,52160,299.75
CLG,Standards Board for England,02/09/2009,Travel - Train,REP,CAPITA BUSINESS TRAVEL,52160,"1,404.16"
CLG,Standards Board for England,02/09/2009,Travel - Train,REP,CAPITA BUSINESS TRAVEL,52160,148.48
CLG,Standards Board for England,02/09/2009,Travel - Train,RSK,CAPITA BUSINESS TRAVEL,52160,87.66
CLG,Standards Board for England,02/09/2009,Accommodation,REP,CAPITA BUSINESS TRAVEL,52160,978.51
CLG,Standards Board for England,02/09/2009,This Year's Conf Prepayments,COM,CAPITA BUSINESS TRAVEL,52160,225.59
CLG,Standards Board for England,02/09/2009,Travel - Train,FIN,CAPITA BUSINESS TRAVEL,52160,-67.9
CLG,Standards Board for England,02/09/2009,Travel - Train,REG,CAPITA BUSINESS TRAVEL,52160,38.7
CLG,Standards Board for England,02/09/2009,Events at Conferences,COM,CAPITA BUSINESS TRAVEL,52160,280.82
CLG,Standards Board for England,02/09/2009,Travel - Train,BRD,CAPITA BUSINESS TRAVEL,52160,377.12
CLG,Standards Board for England,02/09/2009,Travel - Train,STR,CAPITA BUSINESS TRAVEL,52160,319.1
CLG,Standards Board for England,03/09/2009,Staff Training,GUI,SOLACE ENTERPRISES,52149,632.5
CLG,Standards Board for England,04/09/2009,Conference Networking,COM,LOCAL GOVERNMENT ASSOCIATION,52214,419.75
CLG,Standards Board for England,07/09/2009,Contract Staff,CEO,BADENOCH & CLARK,52187,"2,765.75"
CLG,Standards Board for England,07/09/2009,Rates,FAC,MANCHESTER CITY COUNCIL,52326,"5,416.00"
CLG,Standards Board for England,07/09/2009,Internet Charges,IST,NODE 4 LIMITED,52196,799.25
CLG,Standards Board for England,07/09/2009,Contract Staff,REP,SELLICK PARTNERSHIPS,52188,756.62
CLG,Standards Board for England,07/09/2009,Contract Staff,STA,SELLICK PARTNERSHIPS,52188,756.62
CLG,Standards Board for England,07/09/2009,Annual Review,COM,THE STATIONERY OFFICE,52290,"2,372.00"
CLG,Standards Board for England,08/09/2009,IT Hardware,IST,KELWAY (UK) LTD,52197,"1,472.00"
CLG,Standards Board for England,08/09/2009,IT Software Support,IST,KELWAY (UK) LTD,52197,75.9
CLG,Standards Board for England,08/09/2009,Staff Training,PST,REED TRAINING,52208,441.94
CLG,Standards Board for England,08/09/2009,Staff Training,STR,REED TRAINING,52208,441.94
CLG,Standards Board for England,08/09/2009,IT Software Support,IST,TOUCHSTONE/ETC GLOBAL SOLUTION,52221,805
CLG,Standards Board for England,08/09/2009,IT Software Support,IST,TOUCHSTONE/ETC GLOBAL SOLUTION,52222,"4,830.00"
CLG,Standards Board for England,08/09/2009,IT Software Support,IST,TOUCHSTONE/ETC GLOBAL SOLUTION,52218,"2,415.00"
CLG,Standards Board for England,09/09/2009,Professional Fees,REP,PA CONSULTING,52227,"20,631.00"
CLG,Standards Board for England,10/09/2009,IT Hardware,IST,KELWAY (UK) LTD,52223,"1,020.05"
CLG,Standards Board for England,10/09/2009,Events at Conferences,COM,PRO'TEAN DESIGN,52224,"2,647.71"
CLG,Standards Board for England,10/09/2009,Events at Conferences,COM,PRO'TEAN DESIGN,52225,"5,065.75"
CLG,Standards Board for England,10/09/2009,Contract Staff,FIN,SEARCH RECRUITMENT,52186,"1,642.73"
CLG,Standards Board for England,11/09/2009,Contract Staff,FIN,SEARCH RECRUITMENT,52203,597.11
CLG,Standards Board for England,11/09/2009,Contract Staff,REP,SELLICK PARTNERSHIPS,52202,754.69
CLG,Standards Board for England,11/09/2009,Contract Staff,STA,SELLICK PARTNERSHIPS,52202,754.69
CLG,Standards Board for England,14/09/2009,Contract Staff,CEO,BADENOCH & CLARK,52204,"2,212.60"
CLG,Standards Board for England,14/09/2009,Professional Fees,IST,XCMS SOLUTIONS LTD,52207,632.5
CLG,Standards Board for England,14/09/2009,Subsistence,IST,XCMS SOLUTIONS LTD,52215,122.85
CLG,Standards Board for England,14/09/2009,Professional Fees,IST,XCMS SOLUTIONS LTD,52215,"8,855.00"
CLG,Standards Board for England,15/09/2009,Guidance/Advice - Production,EXT,EC GROUP,52293,"10,508.28"
CLG,Standards Board for England,15/09/2009,Guidance/Advice - Production,EXT,PDC COPYPRINT,52292,975
CLG,Standards Board for England,15/09/2009,Professional Fees,FIN,TAMESIDE,52216,"2,185.00"
CLG,Standards Board for England,18/09/2009,Contract Staff,CEO,BADENOCH & CLARK,52274,"2,765.75"
CLG,Standards Board for England,18/09/2009,Contract Staff,REP,SELLICK PARTNERSHIPS,52277,756.62
CLG,Standards Board for England,18/09/2009,Contract Staff,STA,SELLICK PARTNERSHIPS,52277,756.62
CLG,Standards Board for England,21/09/2009,Commissioned Research,KNO,BMG RESEARCH,52331,"19,923.75"
CLG,Standards Board for England,21/09/2009,Telephone and Fax - Land line,APE,VODAFONE CORPORATE LTD,52288,24.26
CLG,Standards Board for England,21/09/2009,Mobile Telephone,CEO,VODAFONE CORPORATE LTD,52288,45.48
CLG,Standards Board for England,21/09/2009,Mobile Telephone,ESO,VODAFONE CORPORATE LTD,52288,68.51
CLG,Standards Board for England,21/09/2009,Mobile Telephone,EXT,VODAFONE CORPORATE LTD,52288,24.56
CLG,Standards Board for England,21/09/2009,Mobile Telephone,FAC,VODAFONE CORPORATE LTD,52288,27.24
CLG,Standards Board for England,21/09/2009,Mobile Telephone,GUI,VODAFONE CORPORATE LTD,52288,25.92
CLG,Standards Board for England,21/09/2009,Mobile Telephone,HRC,VODAFONE CORPORATE LTD,52288,24.14
CLG,Standards Board for England,21/09/2009,Mobile Telephone,IST,VODAFONE CORPORATE LTD,52288,706.53
CLG,Standards Board for England,21/09/2009,Mobile Telephone,KNO,VODAFONE CORPORATE LTD,52288,24.14
CLG,Standards Board for England,21/09/2009,Mobile Telephone,PER,VODAFONE CORPORATE LTD,52288,48.28
CLG,Standards Board for England,21/09/2009,Mobile Telephone,PLN,VODAFONE CORPORATE LTD,52288,24.15
CLG,Standards Board for England,21/09/2009,Mobile Telephone,PST,VODAFONE CORPORATE LTD,52288,25.45
CLG,Standards Board for England,21/09/2009,Mobile Telephone,REG,VODAFONE CORPORATE LTD,52288,24.79
CLG,Standards Board for England,21/09/2009,Mobile Telephone,REP,VODAFONE CORPORATE LTD,52288,513.97
CLG,Standards Board for England,21/09/2009,Mobile Telephone,STA,VODAFONE CORPORATE LTD,52288,26.43
CLG,Standards Board for England,21/09/2009,Mobile Telephone,STR,VODAFONE CORPORATE LTD,52288,24.3
CLG,Standards Board for England,21/09/2009,Mobile Telephone,RSK,VODAFONE CORPORATE LTD,52288,24.22
CLG,Standards Board for England,21/09/2009,Mobile Telephone,COM,VODAFONE CORPORATE LTD,52288,52.61
CLG,Standards Board for England,21/09/2009,Mobile Telephone,FIN,VODAFONE CORPORATE LTD,52288,26.88
CLG,Standards Board for England,22/09/2009,This Year's Conf Prepayments,COM,CHAPEL PRESS,52291,"1,597.50"
CLG,Standards Board for England,22/09/2009,Recruitment Advertising,HRC,EMPLOYMENT ABILITY,52289,822.25
CLG,Standards Board for England,23/09/2009,Staff Training,IST,REMARC TECHNOLOGIES,52332,540.5
CLG,Standards Board for England,25/09/2009,Legal Fees,REP,LANDMARK CHAMBERS,52510,"4,991.00"
CLG,Standards Board for England,25/09/2009,Rent,FAC,N BROWN FUNDING LTD,52358,"50,657.50"
CLG,Standards Board for England,25/09/2009,Corporate Training,HRC,REED TRAINING,52341,579.6
CLG,Standards Board for England,25/09/2009,Contract Staff,FIN,SEARCH RECRUITMENT,52337,"1,005.88"
CLG,Standards Board for England,25/09/2009,Contract Staff,FIN,SEARCH RECRUITMENT,52336,974.18
CLG,Standards Board for England,25/09/2009,Contract Staff,REP,SELLICK PARTNERSHIPS,52335,758.8
CLG,Standards Board for England,25/09/2009,Contract Staff,STA,SELLICK PARTNERSHIPS,52335,758.79
CLG,Standards Board for England,25/09/2009,Website Development,PUB,TERMINAL FOUR,52372,"1,328.25"
CLG,Standards Board for England,28/09/2009,Professional Fees,HRC,GOVERNMENT ACTUARY'S DEPT.,52340,815.01
CLG,Standards Board for England,30/09/2009,Professional Subscriptions,REP,SWEET AND MAXWELL,52513,609
CLG,Standards Board for England,01/10/2009,Contract Staff,CEO,BADENOCH & CLARK,52549,"2,212.60"
CLG,Standards Board for England,01/10/2009,Events at Conferences,COM,DOD'S PARLIAMENTARY COMMUNICAT,52536,"3,450.00"
CLG,Standards Board for England,01/10/2009,Stationery,FAC,EGAN REID STATIONERY CO,52537,972.45
CLG,Standards Board for England,01/10/2009,Stationery,IST,EGAN REID STATIONERY CO,52537,12.25
CLG,Standards Board for England,01/10/2009,Press Office Services,COM,NEWSPAPER LICENSING AGENCY,52535,"7,452.70"
CLG,Standards Board for England,01/10/2009,Events at Conferences,COM,PRO'TEAN DESIGN,52528,"5,170.86"
CLG,Standards Board for England,01/10/2009,Miscellaneous Expenses,GUI,SOCIETY OF LOCAL COUNCL CLERKS,52628,"3,200.00"
CLG,Standards Board for England,02/10/2009,Placement Fee,GUI,SEARCH RECRUITMENT,52556,"2,428.43"
CLG,Standards Board for England,02/10/2009,Placement Fee,PST,SEARCH RECRUITMENT,52558,"5,336.00"
CLG,Standards Board for England,02/10/2009,IT Software,IST,TOUCHSTONE/ETC GLOBAL SOLUTION,52554,"3,220.00"
CLG,Standards Board for England,02/10/2009,IT Software,IST,TOUCHSTONE/ETC GLOBAL SOLUTION,52555,"8,855.00"
CLG,Standards Board for England,04/10/2009,Professional Subscriptions,HRC,CIPD ENTERPRISES,53023,743.71
CLG,Standards Board for England,05/10/2009,Communications Projects,COM,JACARANDA,52612,"14,241.08"
CLG,Standards Board for England,05/10/2009,IT Hardware,IST,KELWAY (UK) LTD,52524,830.3
CLG,Standards Board for England,05/10/2009,Internet Charges,IST,NODE 4 LIMITED,52525,799.25
CLG,Standards Board for England,05/10/2009,Contract Staff,GUI,SEARCH RECRUITMENT,52618,"2,428.43"
CLG,Standards Board for England,05/10/2009,External Meeting Room Hire,BRD,THE MIDLAND HOTEL,52553,"1,738.86"
CLG,Standards Board for England,06/10/2009,Travel - Taxi,IST,CAPITA BUSINESS TRAVEL,52634,319.2
CLG,Standards Board for England,06/10/2009,Travel - Train,GUI,CAPITA BUSINESS TRAVEL,52634,94.95
CLG,Standards Board for England,06/10/2009,Travel - Train,GUI,CAPITA BUSINESS TRAVEL,52634,293.14
CLG,Standards Board for England,06/10/2009,Travel - Train,KNO,CAPITA BUSINESS TRAVEL,52634,594.22
CLG,Standards Board for England,06/10/2009,Travel - Train,MON,CAPITA BUSINESS TRAVEL,52634,38.44
CLG,Standards Board for England,06/10/2009,Travel - Train,PER,CAPITA BUSINESS TRAVEL,52634,481.33
CLG,Standards Board for England,06/10/2009,Travel - Train,REP,CAPITA BUSINESS TRAVEL,52634,987.49
CLG,Standards Board for England,06/10/2009,Travel - Train,REP,CAPITA BUSINESS TRAVEL,52634,169.48
CLG,Standards Board for England,06/10/2009,Travel - Train,RSK,CAPITA BUSINESS TRAVEL,52634,765.38
CLG,Standards Board for England,06/10/2009,Travel - Train,STA,CAPITA BUSINESS TRAVEL,52634,58.65
CLG,Standards Board for England,06/10/2009,Accommodation,COM,CAPITA BUSINESS TRAVEL,52634,84.05
CLG,Standards Board for England,06/10/2009,Accommodation,GUI,CAPITA BUSINESS TRAVEL,52634,80.01
CLG,Standards Board for England,06/10/2009,Accommodation,GUI,CAPITA BUSINESS TRAVEL,52634,79.72
CLG,Standards Board for England,06/10/2009,Accommodation,REP,CAPITA BUSINESS TRAVEL,52634,752.68
CLG,Standards Board for England,06/10/2009,This Year's Conf Prepayments,COM,CAPITA BUSINESS TRAVEL,52634,38.22
CLG,Standards Board for England,06/10/2009,This Year's Conf Prepayments,COM,CAPITA BUSINESS TRAVEL,52634,261.14
CLG,Standards Board for England,06/10/2009,Travel - Train,REG,CAPITA BUSINESS TRAVEL,52634,159.35
CLG,Standards Board for England,06/10/2009,Events at Conferences,COM,CAPITA BUSINESS TRAVEL,52634,"2,919.76"
CLG,Standards Board for England,06/10/2009,Events at Conferences,COM,CAPITA BUSINESS TRAVEL,52634,916.08
CLG,Standards Board for England,06/10/2009,Travel - Train,BRD,CAPITA BUSINESS TRAVEL,52634,270.8
CLG,Standards Board for England,06/10/2009,Travel - Train,CEO,CAPITA BUSINESS TRAVEL,52634,"1,432.44"
CLG,Standards Board for England,06/10/2009,Travel - Train,ESO,CAPITA BUSINESS TRAVEL,52634,95.55
CLG,Standards Board for England,06/10/2009,Travel - Train,STR,CAPITA BUSINESS TRAVEL,52634,252.5
CLG,Standards Board for England,06/10/2009,Staff Training,HRC,CIPD ENTERPRISES,52602,511.75
CLG,Standards Board for England,06/10/2009,Press Office Services,COM,DURRANTS PRESS CUTTINGS LTD,52611,"2,087.60"
CLG,Standards Board for England,06/10/2009,Legal Fees,REP,LANDMARK CHAMBERS,52601,"3,795.00"
CLG,Standards Board for England,06/10/2009,This Year's Conf Prepayments,COM,PREMIER MARKETING,52810,566.31
CLG,Standards Board for England,06/10/2009,Corporate Identity Project,COM,PREMIER MARKETING,52810,814.47
CLG,Standards Board for England,06/10/2009,This Year's Conf Prepayments,COM,PREMIER MARKETING,52704,576.15
CLG,Standards Board for England,07/10/2009,Contract Staff,CEO,BADENOCH & CLARK,52615,"2,212.60"
CLG,Standards Board for England,07/10/2009,Internet Charges,IST,KINGSTON COMMUNICATIONS,52608,"3,638.31"
CLG,Standards Board for England,07/10/2009,Rates,FAC,MANCHESTER CITY COUNCIL,50042,"5,416.00"
CLG,Standards Board for England,07/10/2009,IT Software Support,IST,SPSS (UK) LTD,52688,362.25
CLG,Standards Board for England,07/10/2009,IT Software,IST,SPSS (UK) LTD,52688,"1,345.50"
CLG,Standards Board for England,08/10/2009,This Year's Conf Prepayments,COM,BELLE VUE COACHES LTD,52717,750
CLG,Standards Board for England,08/10/2009,Postage,COM,CHAPEL PRESS,52940,"1,514.98"
CLG,Standards Board for England,08/10/2009,Communications Projects,COM,JACARANDA,52613,"6,900.00"
CLG,Standards Board for England,08/10/2009,IT Software,IST,KELWAY (UK) LTD,52606,"14,087.50"
CLG,Standards Board for England,08/10/2009,IT Software,IST,KELWAY (UK) LTD,52606,"6,440.00"
CLG,Standards Board for England,08/10/2009,Events at Conferences,COM,PRO'TEAN DESIGN,52527,"5,404.02"
CLG,Standards Board for England,08/10/2009,This Year's Conf Prepayments,COM,REFLEX MARKETING AND PROMOTIONS,52703,"2,049.30"
CLG,Standards Board for England,08/10/2009,Contract Staff,PST,SELLICK PARTNERSHIPS,52617,756.62
CLG,Standards Board for England,08/10/2009,Contract Staff,PST,SELLICK PARTNERSHIPS,52617,756.62
CLG,Standards Board for England,08/10/2009,Contract Staff,PST,SELLICK PARTNERSHIPS,52616,754.69
CLG,Standards Board for England,08/10/2009,Contract Staff,REP,SELLICK PARTNERSHIPS,52616,754.69
CLG,Standards Board for England,08/10/2009,This Year's Conf Prepayments,COM,THOMPSON BRAND PARTNERS,52614,"4,151.50"
CLG,Standards Board for England,09/10/2009,IT Software Support,IST,VIZUAL BUSINESS TOOLS PLC,52605,"6,399.75"
CLG,Standards Board for England,09/10/2009,IT Software Support,IST,VIZUAL BUSINESS TOOLS PLC,52604,"2,742.75"
CLG,Standards Board for England,10/10/2009,Recruitment Advertising,PST,CAPITA RESOURCING,52635,"4,444.75"
CLG,Standards Board for England,10/10/2009,Placement Fee,PST,CAPITA RESOURCING,52635,"4,059.50"
CLG,Standards Board for England,10/10/2009,Placement Fee,PST,CAPITA RESOURCING,52635,603.75
CLG,Standards Board for England,10/10/2009,Recruitment Advertising,REP,CAPITA RESOURCING,52635,"4,444.75"
CLG,Standards Board for England,10/10/2009,Placement Fee,REP,CAPITA RESOURCING,52635,"2,691.00"
CLG,Standards Board for England,10/10/2009,Placement Fee,REP,CAPITA RESOURCING,52635,810.79
CLG,Standards Board for England,12/10/2009,Commissioned Research,KNO,BMG RESEARCH,52684,"10,062.50"
CLG,Standards Board for England,12/10/2009,Corporate Identity Project,COM,ELECTRO-TECH COLOUR,52807,"1,762.95"
CLG,Standards Board for England,12/10/2009,Guidance/Advice - Production,PUB,PDC COPYPRINT,52718,840.42
CLG,Standards Board for England,13/10/2009,This Year's Conf Prepayments,COM,PRO'TEAN DESIGN,52716,609.5
CLG,Standards Board for England,14/10/2009,Printing,IST,KELWAY (UK) LTD,52686,"2,096.45"
CLG,Standards Board for England,14/10/2009,Events at Conferences,COM,SOCIETY OF LOCAL COUNCL CLERKS,52975,"2,081.50"
CLG,Standards Board for England,16/10/2009,Other employment Costs,APE,GOVERNMENT ACTUARY'S DEPT.,52668,"1,300.08"
CLG,Standards Board for England,16/10/2009,Service Charges,HR,JD WILLIAMS,52666,"6,843.02"
CLG,Standards Board for England,16/10/2009,Contract Staff,PST,SELLICK PARTNERSHIPS,52690,897.66
CLG,Standards Board for England,16/10/2009,Contract Staff,REP,SELLICK PARTNERSHIPS,52690,897.65
CLG,Standards Board for England,17/10/2009,Service Charges,FAC,CLEANING NORTHWEST,52705,"1,475.67"
CLG,Standards Board for England,19/10/2009,Contract Staff,CEO,BADENOCH & CLARK,52772,"2,765.75"
CLG,Standards Board for England,19/10/2009,Staff Training,FIN,CIPFA,52691,546.25
CLG,Standards Board for England,19/10/2009,Legal Fees,REP,LANDMARK CHAMBERS,52710,690
CLG,Standards Board for England,19/10/2009,Legal Fees,REP,LANDMARK CHAMBERS,52710,"1,587.00"
CLG,Standards Board for England,20/10/2009,This Year's Conf Prepayments,COM,INDISPLAY LTD,52808,"2,111.40"
CLG,Standards Board for England,20/10/2009,Professional Fees,REP,PA CONSULTING,52707,"5,244.00"
CLG,Standards Board for England,20/10/2009,Professional Fees,PLN,PA CONSULTING,52687,"21,125.50"
CLG,Standards Board for England,21/10/2009,IT Software,IST,ANCORIS LIMITED,52786,"1,723.85"
CLG,Standards Board for England,21/10/2009,Professional Fees,FIN,BENTLEY JENNISON RISK MANAGEME,52767,"3,622.50"
CLG,Standards Board for England,21/10/2009,Annual Review,COM,CHAPEL PRESS,52809,"6,847.00"
CLG,Standards Board for England,21/10/2009,Staff Training,HRC,CHIUMENTO,52784,"3,450.00"
CLG,Standards Board for England,21/10/2009,Placement Fee,IST,HAYS INFORMATION TECHNOLOGY,52769,"5,020.16"
CLG,Standards Board for England,21/10/2009,Events at Conferences,EXT,PRO'TEAN DESIGN,52801,"4,944.70"
CLG,Standards Board for England,21/10/2009,Events at Conferences,COM,PRO'TEAN DESIGN,52804,"2,843.21"
CLG,Standards Board for England,21/10/2009,Conference Networking,EXT,SOLACE ENTERPRISES,52805,"1,558.25"
CLG,Standards Board for England,21/10/2009,Telephone and Fax - Land line,APE,VODAFONE CORPORATE LTD,52779,23.74
CLG,Standards Board for England,21/10/2009,Mobile Telephone,CEO,VODAFONE CORPORATE LTD,52779,105.36
CLG,Standards Board for England,21/10/2009,Mobile Telephone,ESO,VODAFONE CORPORATE LTD,52779,67.41
CLG,Standards Board for England,21/10/2009,Mobile Telephone,EXT,VODAFONE CORPORATE LTD,52779,24.68
CLG,Standards Board for England,21/10/2009,Mobile Telephone,FAC,VODAFONE CORPORATE LTD,52779,23.85
CLG,Standards Board for England,21/10/2009,Mobile Telephone,GUI,VODAFONE CORPORATE LTD,52779,24.91
CLG,Standards Board for England,21/10/2009,Mobile Telephone,HRC,VODAFONE CORPORATE LTD,52779,23.79
CLG,Standards Board for England,21/10/2009,Mobile Telephone,IST,VODAFONE CORPORATE LTD,52779,704.15
CLG,Standards Board for England,21/10/2009,Mobile Telephone,KNO,VODAFONE CORPORATE LTD,52779,25.2
CLG,Standards Board for England,21/10/2009,Mobile Telephone,PER,VODAFONE CORPORATE LTD,52779,47.89
CLG,Standards Board for England,21/10/2009,Mobile Telephone,PLN,VODAFONE CORPORATE LTD,52779,23.81
CLG,Standards Board for England,21/10/2009,Mobile Telephone,PST,VODAFONE CORPORATE LTD,52779,25.82
CLG,Standards Board for England,21/10/2009,Mobile Telephone,REG,VODAFONE CORPORATE LTD,52779,24.49
CLG,Standards Board for England,21/10/2009,Mobile Telephone,REP,VODAFONE CORPORATE LTD,52779,383.15
CLG,Standards Board for England,21/10/2009,Mobile Telephone,STA,VODAFONE CORPORATE LTD,52779,27.32
CLG,Standards Board for England,21/10/2009,Mobile Telephone,STR,VODAFONE CORPORATE LTD,52779,27.58
CLG,Standards Board for England,21/10/2009,Mobile Telephone,RSK,VODAFONE CORPORATE LTD,52779,23.77
CLG,Standards Board for England,21/10/2009,Mobile Telephone,COM,VODAFONE CORPORATE LTD,52779,52.37
CLG,Standards Board for England,21/10/2009,Mobile Telephone,FIN,VODAFONE CORPORATE LTD,52779,42.17
CLG,Standards Board for England,22/10/2009,This Year's Conf Prepayments,COM,HYATT REGENCY BIRMINGHAM,52806,"2,979.86"
CLG,Standards Board for England,22/10/2009,Placement Fee,REP,SEARCH RECRUITMENT,52787,"1,610.00"
CLG,Standards Board for England,26/10/2009,Events at Conferences,COM,INGENIUM SE LTD,52977,"6,894.25"
CLG,Standards Board for England,26/10/2009,IT Software Support,IST,KENSON NETWORK ENGINEERING LTD,52944,"1,541.00"
CLG,Standards Board for England,26/10/2009,Printing,REP,MPG PLC,52785,937.3
CLG,Standards Board for England,26/10/2009,Photocopier,REG,RNIB,52803,570.86
CLG,Standards Board for England,26/10/2009,Photocopier,REP,RNIB,52803,2.88
CLG,Standards Board for England,27/10/2009,This Year's Conf Prepayments,COM,THE NEC GROUP,52941,"69,232.38"
CLG,Standards Board for England,27/10/2009,This Year's Conf Prepayments,COM,THE NEC GROUP,52942,"48,116.31"
CLG,Standards Board for England,28/10/2009,Contract Staff,CEO,BADENOCH & CLARK,52946,"2,765.75"
CLG,Standards Board for England,29/10/2009,IT Software,IST,ANCORIS LIMITED,52945,"2,633.50"
CLG,Standards Board for England,29/10/2009,Recruitment Advertising,KNO,CAPITA RESOURCING,52952,"4,303.30"
CLG,Standards Board for England,29/10/2009,Recruitment Advertising,PST,CAPITA RESOURCING,52952,"6,072.00"
CLG,Standards Board for England,29/10/2009,Recruitment Advertising,RSK,CAPITA RESOURCING,52953,"6,523.95"
CLG,Standards Board for England,29/10/2009,Recruitment Advertising,KNO,CAPITA RESOURCING,52951,787.75
CLG,Standards Board for England,29/10/2009,Printing,PUB,EC GROUP,52979,"5,956.00"
CLG,Standards Board for England,29/10/2009,Postage,FAC,PITNEY BOWES LTD,52948,"1,026.00"
CLG,Standards Board for England,01/11/2009,Staff Training,PER,FOCUS ON TRAINING,53063,776.25
CLG,Standards Board for England,01/11/2009,Commissioned Research,STA,UNIVERSITY OF HULL,53128,"11,500.00"
CLG,Standards Board for England,03/11/2009,Internal Audit Fees,FIN,BENTLEY JENNISON RISK MANAGEME,53055,"10,199.41"
CLG,Standards Board for England,03/11/2009,IT Software,IST,INSIGHT DIRECT (UK) LTD,53066,"32,240.48"
CLG,Standards Board for England,03/11/2009,Staff Training,REP,INSTITUTE OF QUALITY ASSURANCE,53065,639.4
CLG,Standards Board for England,03/11/2009,Photocopier,FAC,OCE (UK) LTD ,53053,"1,212.62"
CLG,Standards Board for England,03/11/2009,Conferences,CEO,SOLACE ENTERPRISES,53137,546.25
CLG,Standards Board for England,03/11/2009,IT Software,IST,SSC EXCHANGE,53062,805.3
CLG,Standards Board for England,04/11/2009,Contract Staff,CEO,BADENOCH & CLARK,53080,"2,765.75"
CLG,Standards Board for England,04/11/2009,IT Software Support,IST,INSIGHT DIRECT (UK) LTD,53093,"3,568.45"
CLG,Standards Board for England,04/11/2009,IT Software,IST,INSIGHT DIRECT (UK) LTD,53093,"12,132.50"
CLG,Standards Board for England,04/11/2009,Photocopier Leasing Charges,FAC,OCE FINANCE,53060,"1,374.58"
CLG,Standards Board for England,06/11/2009,Contract Staff,CEO,BADENOCH & CLARK,53079,"2,212.60"
CLG,Standards Board for England,06/11/2009,Annual Assembly,EXT,BENEDICT BUSINESS RESOURCES,53132,"10,741.00"
CLG,Standards Board for England,06/11/2009,Travel - Train,GUI,CAPITA BUSINESS TRAVEL,53136,181.39
CLG,Standards Board for England,06/11/2009,Travel - Train,GUI,CAPITA BUSINESS TRAVEL,53136,394
CLG,Standards Board for England,06/11/2009,Travel - Train,IST,CAPITA BUSINESS TRAVEL,53136,79.8
CLG,Standards Board for England,06/11/2009,Travel - Train,KNO,CAPITA BUSINESS TRAVEL,53136,82.72
CLG,Standards Board for England,06/11/2009,Travel - Train,REP,CAPITA BUSINESS TRAVEL,53136,"1,860.51"
CLG,Standards Board for England,06/11/2009,Travel - Train,RSK,CAPITA BUSINESS TRAVEL,53136,622.3
CLG,Standards Board for England,06/11/2009,Travel - Train,STA,CAPITA BUSINESS TRAVEL,53136,296.32
CLG,Standards Board for England,06/11/2009,General Travel - Air,ESO,CAPITA BUSINESS TRAVEL,53136,179.96
CLG,Standards Board for England,06/11/2009,General Travel - Air,RSK,CAPITA BUSINESS TRAVEL,53136,219
CLG,Standards Board for England,06/11/2009,Accommodation,ESO,CAPITA BUSINESS TRAVEL,53136,75.26
CLG,Standards Board for England,06/11/2009,Accommodation,EXT,CAPITA BUSINESS TRAVEL,53136,146.77
CLG,Standards Board for England,06/11/2009,Accommodation,IST,CAPITA BUSINESS TRAVEL,53136,250.7
CLG,Standards Board for England,06/11/2009,Accommodation,REP,CAPITA BUSINESS TRAVEL,53136,367.42
CLG,Standards Board for England,06/11/2009,Accommodation,RSK,CAPITA BUSINESS TRAVEL,53136,75.71
CLG,Standards Board for England,06/11/2009,Travel - Train,FIN,CAPITA BUSINESS TRAVEL,53136,247.5
CLG,Standards Board for England,06/11/2009,Events at Conferences,COM,CAPITA BUSINESS TRAVEL,53136,"2,368.78"
CLG,Standards Board for England,06/11/2009,Travel - Train,BRD,CAPITA BUSINESS TRAVEL,53136,85.94
CLG,Standards Board for England,06/11/2009,Travel - Train,CEO,CAPITA BUSINESS TRAVEL,53136,300.5
CLG,Standards Board for England,06/11/2009,Travel - Train,ESO,CAPITA BUSINESS TRAVEL,53136,320.4
CLG,Standards Board for England,06/11/2009,Travel - Train,STR,CAPITA BUSINESS TRAVEL,53136,664.2
CLG,Standards Board for England,06/11/2009,Annual Assembly,EXT,CAPITA BUSINESS TRAVEL,53136,273.5
CLG,Standards Board for England,06/11/2009,Annual Assembly,EXT,CAPITA BUSINESS TRAVEL,53136,448.45
CLG,Standards Board for England,06/11/2009,Service Charges,FAC,CLEANING NORTHWEST,53059,"1,475.67"
CLG,Standards Board for England,06/11/2009,Press Office Services,COM,DURRANTS PRESS CUTTINGS LTD,53091,"2,516.54"
CLG,Standards Board for England,06/11/2009,Communications Projects,COM,HYLTON WALDEK,53086,"13,694.38"
CLG,Standards Board for England,06/11/2009,Annual Review,COM,HYLTON WALDEK,53086,"5,246.00"
CLG,Standards Board for England,07/11/2009,Rates,FAC,MANCHESTER CITY COUNCIL,50042,"5,416.00"
CLG,Standards Board for England,10/11/2009,Stationery,FAC,EGAN REID STATIONERY CO,53174,680.96
CLG,Standards Board for England,10/11/2009,Annual Assembly,EXT,EGAN REID STATIONERY CO,53174,97.81
CLG,Standards Board for England,10/11/2009,Internet Charges,IST,KINGSTON COMMUNICATIONS,53154,"2,731.25"
CLG,Standards Board for England,10/11/2009,Legal Fees,REP,LANDMARK CHAMBERS,52510,"2,334.50"
CLG,Standards Board for England,10/11/2009,Internet Charges,IST,NODE 4 LIMITED,53050,799.25
CLG,Standards Board for England,11/11/2009,Website Development,IST,TERMINAL FOUR,53173,"6,190.45"
CLG,Standards Board for England,12/11/2009,Travel - Taxi,REP,BAILEY GARDINER CARS LTD,53151,671.6
CLG,Standards Board for England,13/11/2009,Contract Staff,CEO,BADENOCH & CLARK,53149,"2,765.75"
CLG,Standards Board for England,13/11/2009,Commissioned Research,KNO,UNIVERSITY OF MANCHESTER,53218,"10,000.00"
CLG,Standards Board for England,15/11/2009,Legal Fees,REP,LANDMARK CHAMBERS,53240,563.5
CLG,Standards Board for England,16/11/2009,IT Software,IST,KELWAY (UK) LTD,53214,793.5
CLG,Standards Board for England,16/11/2009,Professional Fees,IT,MONROVIA SOLUTIONS LTD,53216,"4,657.50"
CLG,Standards Board for England,16/11/2009,Professional Fees,IST,MONROVIA SOLUTIONS LTD,53215,"64,687.50"
CLG,Standards Board for England,16/11/2009,Professional Fees,IST,MONROVIA SOLUTIONS LTD,53219,"3,680.00"
CLG,Standards Board for England,17/11/2009,Professional Fees,HRC,BEAMANS MANAGEMENT CONSULTANTS,53254,"3,098.33"
CLG,Standards Board for England,17/11/2009,IT Hardware,IST,KELWAY (UK) LTD,53213,828
CLG,Standards Board for England,17/11/2009,Annual Assembly,EXT,STEPS DRAMA LEARNING DEVELOPMENT LTD,53357,"12,863.46"
CLG,Standards Board for England,18/11/2009,Telephone and Fax - Land line,APE,VODAFONE CORPORATE LTD,53220,24.15
CLG,Standards Board for England,18/11/2009,Mobile Telephone,CEO,VODAFONE CORPORATE LTD,53220,43.57
CLG,Standards Board for England,18/11/2009,Mobile Telephone,ESO,VODAFONE CORPORATE LTD,53220,68.33
CLG,Standards Board for England,18/11/2009,Mobile Telephone,EXT,VODAFONE CORPORATE LTD,53220,26.25
CLG,Standards Board for England,18/11/2009,Mobile Telephone,FAC,VODAFONE CORPORATE LTD,53220,24.27
CLG,Standards Board for England,18/11/2009,Mobile Telephone,GUI,VODAFONE CORPORATE LTD,53220,26.72
CLG,Standards Board for England,18/11/2009,Mobile Telephone,HRC,VODAFONE CORPORATE LTD,53220,24.12
CLG,Standards Board for England,18/11/2009,Mobile Telephone,IST,VODAFONE CORPORATE LTD,53220,706.06
CLG,Standards Board for England,18/11/2009,Mobile Telephone,KNO,VODAFONE CORPORATE LTD,53220,31.2
CLG,Standards Board for England,18/11/2009,Mobile Telephone,PER,VODAFONE CORPORATE LTD,53220,48.37
CLG,Standards Board for England,18/11/2009,Mobile Telephone,PLN,VODAFONE CORPORATE LTD,53220,24.14
CLG,Standards Board for England,18/11/2009,Mobile Telephone,PST,VODAFONE CORPORATE LTD,53220,24.48
CLG,Standards Board for England,18/11/2009,Mobile Telephone,REG,VODAFONE CORPORATE LTD,53220,24.42
CLG,Standards Board for England,18/11/2009,Mobile Telephone,REP,VODAFONE CORPORATE LTD,53220,390.01
CLG,Standards Board for England,18/11/2009,Mobile Telephone,STA,VODAFONE CORPORATE LTD,53220,26.67
CLG,Standards Board for England,18/11/2009,Mobile Telephone,STR,VODAFONE CORPORATE LTD,53220,26.46
CLG,Standards Board for England,18/11/2009,Mobile Telephone,RSK,VODAFONE CORPORATE LTD,53220,26.46
CLG,Standards Board for England,18/11/2009,Mobile Telephone,COM,VODAFONE CORPORATE LTD,53220,53.06
CLG,Standards Board for England,18/11/2009,Mobile Telephone,FIN,VODAFONE CORPORATE LTD,53220,24.14
CLG,Standards Board for England,19/11/2009,Professional Fees,HRC,BEAMANS MANAGEMENT CONSULTANTS,53221,"14,636.74"
CLG,Standards Board for England,19/11/2009,Events at Conferences,EXT,PRO'TEAN DESIGN,53212,"2,848.96"
CLG,Standards Board for England,19/11/2009,Recruitment Advertising,HRC,REHAB UK LTD,53253,753.25
CLG,Standards Board for England,20/11/2009,Other employment Costs,APE,GOVERNMENT ACTUARY'S DEPT.,53409,"1,037.88"
CLG,Standards Board for England,25/11/2009,Repairs & Maintenance,FAC,OASIS INTERIOR LANDSCAPING,53332,555.84
CLG,Standards Board for England,26/11/2009,Placement Fee,KNO,CAPITA RESOURCING,53376,"2,029.75"
CLG,Standards Board for England,27/11/2009,Contract Staff,CEO,BADENOCH & CLARK,53352,"2,765.75"
CLG,Standards Board for England,27/11/2009,Contract Staff,CEO,BADENOCH & CLARK,53350,"2,765.75"
CLG,Standards Board for England,28/11/2009,Postage - Franking machine finance costs,FAC,PITNEY BOWES FINANCE PLC,50431,"1,196.00"
CLG,Standards Board for England,30/11/2009,Internal Audit Fees,FIN,BENTLEY JENNISON RISK MANAGEME,53384,"1,638.75"
CLG,Standards Board for England,30/11/2009,Stationery,FAC,EGAN REID STATIONERY CO,53385,698.1
CLG,Standards Board for England,30/11/2009,Health & Safety,FAC,EGAN REID STATIONERY CO,53385,19.03
CLG,Standards Board for England,30/11/2009,Professional Fees,HRC,PERSONAL TODAY,53367,"1,442.74"
CLG,Standards Board for England,30/11/2009,Postage,FAC,PITNEY BOWES LTD,53333,513
CLG,Standards Board for England,30/11/2009,Corporate Training,HRC,REED TRAINING,53380,"1,449.00"
CLG,Standards Board for England,30/11/2009,Recruitment Advertising,HRC,TMP (UK)LTD,53377,"2,277.00"
CLG,Standards Board for England,02/12/2009,Professional Fees,HRC,HALLIWELLS,53468,"3,450.00"
CLG,Standards Board for England,03/12/2009,Telephone and Fax - Land line,IST,BRITISH TELECOMMUNICATIONS PLC,49737,"2,478.78"
CLG,Standards Board for England,03/12/2009,Press Office Services,COM,DURRANTS PRESS CUTTINGS LTD,53471,"2,147.86"
CLG,Standards Board for England,03/12/2009,Professional Fees,HRC,WOLTERS KLUWER,53479,897
CLG,Standards Board for England,04/12/2009,Contract Staff,CEO,BADENOCH & CLARK,53476,"2,765.75"
CLG,Standards Board for England,07/12/2009,Travel - Train,GUI,CAPITA BUSINESS TRAVEL,53579,242.1
CLG,Standards Board for England,07/12/2009,Travel - Train,IST,CAPITA BUSINESS TRAVEL,53579,76.4
CLG,Standards Board for England,07/12/2009,Travel - Train,KNO,CAPITA BUSINESS TRAVEL,53579,901.55
CLG,Standards Board for England,07/12/2009,Travel - Train,REP,CAPITA BUSINESS TRAVEL,53579,"3,079.94"
CLG,Standards Board for England,07/12/2009,Travel - Train,RSK,CAPITA BUSINESS TRAVEL,53579,47.95
CLG,Standards Board for England,07/12/2009,Accommodation,KNO,CAPITA BUSINESS TRAVEL,53579,82.72
CLG,Standards Board for England,07/12/2009,Accommodation,PER,CAPITA BUSINESS TRAVEL,53579,418.54
CLG,Standards Board for England,07/12/2009,Accommodation,REP,CAPITA BUSINESS TRAVEL,53579,"1,659.06"
CLG,Standards Board for England,07/12/2009,Board Travel & Accommodation,BRD,CAPITA BUSINESS TRAVEL,53579,446
CLG,Standards Board for England,07/12/2009,Travel - Train,REG,CAPITA BUSINESS TRAVEL,53579,204.4
CLG,Standards Board for England,07/12/2009,Travel - Train,CEO,CAPITA BUSINESS TRAVEL,53579,"1,529.90"
CLG,Standards Board for England,07/12/2009,Travel - Train,STR,CAPITA BUSINESS TRAVEL,53579,982.01
CLG,Standards Board for England,07/12/2009,Accommodation,REG,CAPITA BUSINESS TRAVEL,53579,253
CLG,Standards Board for England,07/12/2009,Annual Assembly,EXT,CAPITA BUSINESS TRAVEL,53579,-34.66
CLG,Standards Board for England,07/12/2009,Service Charges,FAC,CLEANING NORTHWEST,53496,"1,475.67"
CLG,Standards Board for England,07/12/2009,Internet Charges,IST,KINGSTON COMMUNICATIONS,53546,552
CLG,Standards Board for England,07/12/2009,Rates,FAC,MANCHESTER CITY COUNCIL,50042,"5,416.00"
CLG,Standards Board for England,07/12/2009,Corporate Training,HRC,REED TRAINING,53641,"1,449.00"
CLG,Standards Board for England,07/12/2009,Placement Fee,FAC,SEARCH RECRUITMENT,53470,"1,340.90"
CLG,Standards Board for England,07/12/2009,This Year's Conf Prepayments,COM,THE NEC GROUP,53480,"49,295.39"
CLG,Standards Board for England,08/12/2009,Annual Assembly,EXT,BENEDICT BUSINESS RESOURCES,53573,"10,840.12"
CLG,Standards Board for England,08/12/2009,Professional Fees,HRC,EVERSHEDS,53469,770.5
CLG,Standards Board for England,08/12/2009,IT Hardware Repairs & Maintenance,IST,KELWAY (UK) LTD,53547,"2,895.70"
CLG,Standards Board for England,08/12/2009,IT Software Support,IST,KELWAY (UK) LTD,53548,"2,543.80"
CLG,Standards Board for England,09/12/2009,IT Software,IST,INSIGHT DIRECT (UK) LTD,53557,"2,119.30"
CLG,Standards Board for England,09/12/2009,Professional Fees,HRC,RMS INTERNATIONAL,53550,"9,654.25"
CLG,Standards Board for England,10/12/2009,Legal Fees,REP,ARDEN CHAMBERS,53539,"1,541.00"
CLG,Standards Board for England,10/12/2009,Internet Charges,IST,KINGSTON COMMUNICATIONS,53618,"3,594.68"
CLG,Standards Board for England,11/12/2009,Internet Charges,IST,NODE 4 LIMITED,53629,799.25
CLG,Standards Board for England,11/12/2009,Staff Training,PAG,SOLACE ENTERPRISES,53578,"1,265.00"
CLG,Standards Board for England,15/12/2009,Contract Staff,CEO,BADENOCH & CLARK,53634,"2,765.75"
CLG,Standards Board for England,15/12/2009,Annual Assembly,EXT,EC GROUP,53642,"25,926.18"
CLG,Standards Board for England,16/12/2009,Professional Fees,HRC,BEAMANS MANAGEMENT CONSULTANTS,53644,"7,176.00"
CLG,Standards Board for England,16/12/2009,Publication Projects,COM,DOD'S PARLIAMENTARY COMMUNICAT,53643,"2,875.00"
CLG,Standards Board for England,16/12/2009,Rent,FAC,N BROWN FUNDING LTD,53558,"51,758.75"
CLG,Standards Board for England,16/12/2009,IT Software Support,IST,OPTEVIA LTD,53086,"17,825.00"
CLG,Standards Board for England,16/12/2009,IT Software Support,IST,OPTEVIA LTD,53631,"15,640.00"
CLG,Standards Board for England,16/12/2009,Periodicals,KNO,TAYLOR AND FRANCIS,53615,539.76
CLG,Standards Board for England,17/12/2009,Placement Fee,KNO,CAPITA RESOURCING,53636,"2,029.75"
CLG,Standards Board for England,17/12/2009,Placement Fee,PST,CAPITA RESOURCING,53636,"2,875.00"
CLG,Standards Board for England,17/12/2009,Recruitment Advertising,HRC,TMP (UK)LTD,53638,"1,495.00"
CLG,Standards Board for England,18/12/2009,Internal Audit Fees,FIN,BENTLEY JENNISON RISK MANAGEME,53637,"1,092.50"
CLG,Standards Board for England,29/12/2009,Seconded Staff,GUI,EQUALITY AND HUMAN RIGHTS,53750,"9,988.69"
CLG,Standards Board for England,31/12/2009,Contract Staff,CEO,BADENOCH & CLARK,53783,"2,765.75"
CLG,Standards Board for England,31/12/2009,Commissioned Research,KNO,BMG RESEARCH,53819,"15,812.50"
CLG,Standards Board for England,31/12/2009,Placement Fee,RSK,CAPITA RESOURCING,53749,"2,737.00"
CLG,Standards Board for England,31/12/2009,Recruitment Advertising,REP,CAPITA RESOURCING,53760,"5,035.85"
CLG,Standards Board for England,31/12/2009,Recruitment Advertising,RSK,CAPITA RESOURCING,53761,"6,016.80"
CLG,Standards Board for England,31/12/2009,Other employment Costs,APE,GOVERNMENT ACTUARY'S DEPT.,53762,"1,654.97"
CLG,Standards Board for England,31/12/2009,Placement Fee,EXT,MICHAEL PAGE,53751,"4,927.70"
CLG,Standards Board for England,31/12/2009,Telephone and Fax - Land line,APE,VODAFONE CORPORATE LTD,53752,24.13
CLG,Standards Board for England,31/12/2009,Mobile Telephone,CEO,VODAFONE CORPORATE LTD,53752,40.93
CLG,Standards Board for England,31/12/2009,Mobile Telephone,ESO,VODAFONE CORPORATE LTD,53752,68.6
CLG,Standards Board for England,31/12/2009,Mobile Telephone,EXT,VODAFONE CORPORATE LTD,53752,24.74
CLG,Standards Board for England,31/12/2009,Mobile Telephone,FAC,VODAFONE CORPORATE LTD,53752,24.2
CLG,Standards Board for England,31/12/2009,Mobile Telephone,GUI,VODAFONE CORPORATE LTD,53752,25.14
CLG,Standards Board for England,31/12/2009,Mobile Telephone,HRC,VODAFONE CORPORATE LTD,53752,24.15
CLG,Standards Board for England,31/12/2009,Mobile Telephone,IST,VODAFONE CORPORATE LTD,53752,684.76
CLG,Standards Board for England,31/12/2009,Mobile Telephone,KNO,VODAFONE CORPORATE LTD,53752,27.27
CLG,Standards Board for England,31/12/2009,Mobile Telephone,PER,VODAFONE CORPORATE LTD,53752,48.25
CLG,Standards Board for England,31/12/2009,Mobile Telephone,PER,VODAFONE CORPORATE LTD,53752,24.17
CLG,Standards Board for England,31/12/2009,Mobile Telephone,PST,VODAFONE CORPORATE LTD,53752,26.93
CLG,Standards Board for England,31/12/2009,Mobile Telephone,REG,VODAFONE CORPORATE LTD,53752,24.55
CLG,Standards Board for England,31/12/2009,Mobile Telephone,REP,VODAFONE CORPORATE LTD,53752,378.27
CLG,Standards Board for England,31/12/2009,Mobile Telephone,STA,VODAFONE CORPORATE LTD,53752,26.18
CLG,Standards Board for England,31/12/2009,Mobile Telephone,STR,VODAFONE CORPORATE LTD,53752,27.3
CLG,Standards Board for England,31/12/2009,Mobile Telephone,RSK,VODAFONE CORPORATE LTD,53752,24.32
CLG,Standards Board for England,31/12/2009,Mobile Telephone,COM,VODAFONE CORPORATE LTD,53752,53.39
CLG,Standards Board for England,31/12/2009,Mobile Telephone,FIN,VODAFONE CORPORATE LTD,53752,24.38
CLG,Standards Board for England,01/01/2010,Legal Fees,REP,ARDEN CHAMBERS,53539,"1,771.00"
CLG,Standards Board for England,01/01/2010,IT Software,IST,INSIGHT DIRECT (UK) LTD,53834,"8,635.30"
CLG,Standards Board for England,01/01/2010,Couriers,IST,INSIGHT DIRECT (UK) LTD,53826,12.64
CLG,Standards Board for England,01/01/2010,IT Hardware Repairs & Maintenance,IST,INSIGHT DIRECT (UK) LTD,53826,799.61
CLG,Standards Board for England,01/01/2010,IT Software Support,IST,KELWAY (UK) LTD,53825,"2,500.56"
CLG,Standards Board for England,01/01/2010,Events at Conferences,COM,LG COMMUNICATIONS,53871,"1,000.00"
CLG,Standards Board for England,04/01/2010,Contract Staff,CEO,BADENOCH & CLARK,53824,"2,765.75"
CLG,Standards Board for England,04/01/2010,LGA Conference Exhibition,COM,LOCAL GOVERNMENT ASSOCIATION,53858,736
CLG,Standards Board for England,04/01/2010,LGA Conference Exhibition,COM,LOCAL GOVERNMENT ASSOCIATION,53854,736
CLG,Standards Board for England,04/01/2010,LGA Conference Exhibition,COM,LOCAL GOVERNMENT ASSOCIATION,53856,736
CLG,Standards Board for England,04/01/2010,LGA Conference Exhibition,COM,LOCAL GOVERNMENT ASSOCIATION,52214,419.75
CLG,Standards Board for England,04/01/2010,IT Software Support,IST,XCMS SOLUTIONS LTD,53877,632.5
CLG,Standards Board for England,04/01/2010,IT Hardware Repairs & Maintenance,IST,XCMS SOLUTIONS LTD,53876,"7,327.42"
CLG,Standards Board for England,04/01/2010,IT Hardware Repairs & Maintenance,IST,XCMS SOLUTIONS LTD,53875,"4,461.11"
CLG,Standards Board for England,06/01/2010,Conferences,STA,MEDIVENTS LTD,53831,684.25
CLG,Standards Board for England,06/01/2010,Internet Charges,IST,NODE 4 LIMITED,53830,816.63
CLG,Standards Board for England,07/01/2010,Travel - Train,COM,CAPITA BUSINESS TRAVEL,53918,193.9
CLG,Standards Board for England,07/01/2010,Travel - Train,GUI,CAPITA BUSINESS TRAVEL,53918,76.4
CLG,Standards Board for England,07/01/2010,Travel - Train,KNO,CAPITA BUSINESS TRAVEL,53918,205
CLG,Standards Board for England,07/01/2010,Travel - Train,KNO,CAPITA BUSINESS TRAVEL,53918,75.4
CLG,Standards Board for England,07/01/2010,Travel - Train,REP,CAPITA BUSINESS TRAVEL,53918,20.5
CLG,Standards Board for England,07/01/2010,Travel - Train,REP,CAPITA BUSINESS TRAVEL,53918,"1,216.30"
CLG,Standards Board for England,07/01/2010,General Travel - Air,REP,CAPITA BUSINESS TRAVEL,53918,103.98
CLG,Standards Board for England,07/01/2010,Accommodation,CEO,CAPITA BUSINESS TRAVEL,53918,306
CLG,Standards Board for England,07/01/2010,Accommodation,PER,CAPITA BUSINESS TRAVEL,53918,138
CLG,Standards Board for England,07/01/2010,Accommodation,REP,CAPITA BUSINESS TRAVEL,53918,937.55
CLG,Standards Board for England,07/01/2010,Accommodation,REP,CAPITA BUSINESS TRAVEL,53918,967.05
CLG,Standards Board for England,07/01/2010,Accommodation,RSK,CAPITA BUSINESS TRAVEL,53918,167.77
CLG,Standards Board for England,07/01/2010,Board Travel & Accommodation,BRD,CAPITA BUSINESS TRAVEL,53918,-26.22
CLG,Standards Board for England,07/01/2010,LGA Conference Exhibition,COM,CAPITA BUSINESS TRAVEL,53918,426.08
CLG,Standards Board for England,07/01/2010,Travel - Train,REG,CAPITA BUSINESS TRAVEL,53918,475.61
CLG,Standards Board for England,07/01/2010,Travel - Train,CEO,CAPITA BUSINESS TRAVEL,53918,766.5
CLG,Standards Board for England,07/01/2010,Travel - Train,STR,CAPITA BUSINESS TRAVEL,53918,415.08
CLG,Standards Board for England,07/01/2010,Accommodation,REG,CAPITA BUSINESS TRAVEL,53918,65
CLG,Standards Board for England,07/01/2010,Rates,FAC,MANCHESTER CITY COUNCIL,50042,"5,416.00"
CLG,Standards Board for England,12/01/2010,Telephone and Fax - Land line,IST,BRITISH TELECOMMUNICATIONS PLC,49737,"2,296.96"
CLG,Standards Board for England,12/01/2010,Service Charges,FAC,CLEANING NORTHWEST,53861,"1,507.75"
CLG,Standards Board for England,12/01/2010,Professional Subscriptions,IST,FEDERATION AGAINST SOFTWARE TH,53870,"5,228.75"
CLG,Standards Board for England,12/01/2010,Photocopier,FAC,OCE FINANCE,53886,"1,404.47"
CLG,Standards Board for England,12/01/2010,IT Software Support,IST,OPTEVIA LTD,53944,"26,392.50"
CLG,Standards Board for England,12/01/2010,IT Software Support,IST,XCMS SOLUTIONS LTD,53881,632.5
CLG,Standards Board for England,12/01/2010,IT Software Support,IST,XCMS SOLUTIONS LTD,53882,632.5
CLG,Standards Board for England,12/01/2010,IT Software Support,IST,XCMS SOLUTIONS LTD,53883,632.5
CLG,Standards Board for England,12/01/2010,IT Software Support,IST,XCMS SOLUTIONS LTD,53878,632.5
CLG,Standards Board for England,14/01/2010,Commissioned Research,KNO,BMG RESEARCH,53933,"24,638.75"
CLG,Standards Board for England,14/01/2010,Press Office Services,COM,DURRANTS PRESS CUTTINGS LTD,53934,"2,549.52"
CLG,Standards Board for England,18/01/2010,Contract Staff,CEO,BADENOCH & CLARK,53981,"2,260.70"
CLG,Standards Board for England,18/01/2010,Publications,KNO,TAYLOR AND FRANCIS,54021,539.76
CLG,Standards Board for England,19/01/2010,Contract Staff,FIN,RUSSAM GMS,53940,"2,643.75"
CLG,Standards Board for England,20/01/2010,Internet Charges,IST,KINGSTON COMMUNICATIONS,53977,"3,576.41"
CLG,Standards Board for England,20/01/2010,Telephone and Fax - Land line,APE,VODAFONE CORPORATE LTD,53996,24.43
CLG,Standards Board for England,20/01/2010,Mobile Telephone,CEO,VODAFONE CORPORATE LTD,53996,55.06
CLG,Standards Board for England,20/01/2010,Mobile Telephone,EXT,VODAFONE CORPORATE LTD,53996,25.57
CLG,Standards Board for England,20/01/2010,Mobile Telephone,GUI,VODAFONE CORPORATE LTD,53996,27.31
CLG,Standards Board for England,20/01/2010,Mobile Telephone,HRC,VODAFONE CORPORATE LTD,53996,24.43
CLG,Standards Board for England,20/01/2010,Mobile Telephone,IST,VODAFONE CORPORATE LTD,53996,662.9
CLG,Standards Board for England,20/01/2010,Mobile Telephone,KNO,VODAFONE CORPORATE LTD,53996,28.75
CLG,Standards Board for England,20/01/2010,Mobile Telephone,PER,VODAFONE CORPORATE LTD,53996,50.05
CLG,Standards Board for England,20/01/2010,Mobile Telephone,PST,VODAFONE CORPORATE LTD,53996,24.97
CLG,Standards Board for England,20/01/2010,Mobile Telephone,REG,VODAFONE CORPORATE LTD,53996,25.8
CLG,Standards Board for England,20/01/2010,Mobile Telephone,REP,VODAFONE CORPORATE LTD,53996,473.42
CLG,Standards Board for England,20/01/2010,Mobile Telephone,STA,VODAFONE CORPORATE LTD,53996,28.86
CLG,Standards Board for England,20/01/2010,Mobile Telephone,STR,VODAFONE CORPORATE LTD,53996,27.71
CLG,Standards Board for England,20/01/2010,Mobile Telephone,RSK,VODAFONE CORPORATE LTD,53996,49.56
CLG,Standards Board for England,20/01/2010,Mobile Telephone,COM,VODAFONE CORPORATE LTD,53996,53.83
CLG,Standards Board for England,20/01/2010,Mobile Telephone,FIN,VODAFONE CORPORATE LTD,53996,24.93
CLG,Standards Board for England,21/01/2010,Professional Fees,HRC,BEAMANS MANAGEMENT CONSULTANTS,53998,"6,452.16"
CLG,Standards Board for England,22/01/2010,Legal Fees,REP,ARDEN CHAMBERS,53539,"13,179.00"
CLG,Standards Board for England,22/01/2010,Contract Staff,CEO,BADENOCH & CLARK,53993,"2,260.70"
CLG,Standards Board for England,22/01/2010,IT Hardware Repairs & Maintenance,IST,SETON,53982,649.83
CLG,Standards Board for England,25/01/2010,Contract Staff,FIN,RUSSAM GMS,53987,"2,643.75"
CLG,Standards Board for England,27/01/2010,Staff Training,STA,UNIVERSITY OF CHESTER,54068,"1,180.00"
CLG,Standards Board for England,29/01/2010,IT Software Support,IST,ANCORIS LIMITED,54175,688.55
CLG,Standards Board for England,31/01/2010,Press Office Services,COM,DURRANTS PRESS CUTTINGS LTD,54183,"3,236.66"
CLG,Standards Board for England,01/02/2010,Contract Staff,CEO,BADENOCH & CLARK,54115,"2,825.88"
CLG,Standards Board for England,01/02/2010,Professional Fees,FIN,BENTLEY JENNISON RISK MANAGEME,54178,"1,953.44"
CLG,Standards Board for England,01/02/2010,Professional Fees,IST,BROOKVEX,54122,898.88
CLG,Standards Board for England,01/02/2010,Recruitment Advertising,GUI,CAPITA RESOURCING,54121,"2,710.00"
CLG,Standards Board for England,01/02/2010,Placement Fee,REP,CAPITA RESOURCING,54120,"5,499.00"
CLG,Standards Board for England,01/02/2010,Service Charges,FAC,CLEANING NORTHWEST,54184,"1,507.75"
CLG,Standards Board for England,01/02/2010,Professional Fees,IST,CONVERGENT NETWORK SOLUTIONS L,54186,"10,692.50"
CLG,Standards Board for England,01/02/2010,Communications Projects,COM,EC GROUP,54182,"1,717.61"
CLG,Standards Board for England,01/02/2010,Stationery,FAC,EGAN REID STATIONERY CO,54113,884
CLG,Standards Board for England,01/02/2010,IT Hardware,IST,KELWAY (UK) LTD,54173,"1,259.53"
CLG,Standards Board for England,01/02/2010,Internet Charges,IST,NODE 4 LIMITED,54110,816.63
CLG,Standards Board for England,01/02/2010,Postage,FAC,PITNEY BOWES LTD,54118,513
CLG,Standards Board for England,01/02/2010,Corporate Training,HRC,QA TRAINING,54188,"1,326.58"
CLG,Standards Board for England,01/02/2010,Placement Fee,IST,SEARCH RECRUITMENT,54128,966.44
CLG,Standards Board for England,01/02/2010,IT Hardware Repairs & Maintenance,IST,XCMS SOLUTIONS LTD,54129,975.78
CLG,Standards Board for England,03/02/2010,Contract Staff,CEO,BADENOCH & CLARK,54190,"2,260.70"
CLG,Standards Board for England,03/02/2010,Travel - Train,COM,CAPITA BUSINESS TRAVEL,54196,764.34
CLG,Standards Board for England,03/02/2010,Travel - Train,GUI,CAPITA BUSINESS TRAVEL,54196,211
CLG,Standards Board for England,03/02/2010,Travel - Train,HRC,CAPITA BUSINESS TRAVEL,54196,76.2
CLG,Standards Board for England,03/02/2010,Travel - Train,IST,CAPITA BUSINESS TRAVEL,54196,68.3
CLG,Standards Board for England,03/02/2010,Travel - Train,KNO,CAPITA BUSINESS TRAVEL,54196,572.53
CLG,Standards Board for England,03/02/2010,Travel - Train,PER,CAPITA BUSINESS TRAVEL,54196,6.77
CLG,Standards Board for England,03/02/2010,Travel - Train,REP,CAPITA BUSINESS TRAVEL,54196,"2,361.28"
CLG,Standards Board for England,03/02/2010,Travel - Train,RSK,CAPITA BUSINESS TRAVEL,54196,469.4
CLG,Standards Board for England,03/02/2010,Travel - Train,STA,CAPITA BUSINESS TRAVEL,54196,289.25
CLG,Standards Board for England,03/02/2010,Travel - Train,FIN,CAPITA BUSINESS TRAVEL,54196,94.5
CLG,Standards Board for England,03/02/2010,Travel - Train,REG,CAPITA BUSINESS TRAVEL,54196,27.4
CLG,Standards Board for England,03/02/2010,Travel - Train,BRD,CAPITA BUSINESS TRAVEL,54196,795.15
CLG,Standards Board for England,03/02/2010,Travel - Train,CEO,CAPITA BUSINESS TRAVEL,54196,142.39
CLG,Standards Board for England,03/02/2010,Travel - Train,STR,CAPITA BUSINESS TRAVEL,54196,612.94
CLG,Standards Board for England,05/02/2010,Contract Staff,HRC,SEARCH RECRUITMENT,54191,753.23
CLG,Standards Board for England,07/02/2010,Rates,FAC,MANCHESTER CITY COUNCIL,50042,"5,416.00"
CLG,Standards Board for England,09/02/2010,Professional Fees,IST,VIZUAL BUSINESS TOOLS PLC,54279,"2,802.38"
CLG,Standards Board for England,10/02/2010,Events at Conferences,COM,PRO'TEAN DESIGN,54266,712.05
CLG,Standards Board for England,15/02/2010,Contract Staff,CEO,BADENOCH & CLARK,54262,"2,260.70"
CLG,Standards Board for England,15/02/2010,IT Hardware,IST,CHARTERHOUSE VOICE &DATA PLC,54264,531.1
CLG,Standards Board for England,15/02/2010,IT Hardware,IST,ORANGE,54265,616.88
CLG,Standards Board for England,15/02/2010,Printing,COM,PDC COPYPRINT,54317,505.87
CLG,Standards Board for England,15/02/2010,Contract Staff,FIN,RUSSAM GMS,54260,"2,643.75"
CLG,Standards Board for England,15/02/2010,Contract Staff,FIN,RUSSAM GMS,54259,"2,643.75"
CLG,Standards Board for England,16/02/2010,Contract Staff,HRC,SEARCH RECRUITMENT,54263,602.59
CLG,Standards Board for England,16/02/2010,Commissioned Research,STA,UNIVERSITY OF BIRMINGHAM,54268,"17,715.63"
CLG,Standards Board for England,16/02/2010,Commissioned Research,STA,UNIVERSITY OF TEESSIDE,54269,"39,303.75"
CLG,Standards Board for England,16/02/2010,IT Software Support,IST,XCMS SOLUTIONS LTD,54339,646.25
CLG,Standards Board for England,16/02/2010,IT Software Support,IST,XCMS SOLUTIONS LTD,54338,646.25
CLG,Standards Board for England,17/02/2010,Professional Fees,IST,KELWAY (UK) LTD,54405,705
CLG,Standards Board for England,17/02/2010,Staff Training,STR,NATIONAL SCHOOL OF GOVERNMENT,54322,990
CLG,Standards Board for England,18/02/2010,This Year's Conf Prepayments,COM,BENEDICT BUSINESS RESOURCES,54320,"10,974.50"
CLG,Standards Board for England,18/02/2010,Publication Projects,COM,NALC,54340,"2,350.00"
CLG,Standards Board for England,18/02/2010,IT Software Support,IST,OPTEVIA LTD,54342,"16,479.38"
CLG,Standards Board for England,19/02/2010,Corporate Training,HRC,REED TRAINING,54318,"1,292.50"
CLG,Standards Board for England,19/02/2010,Telephone and Fax - Land line,APE,VODAFONE CORPORATE LTD,54331,24.67
CLG,Standards Board for England,19/02/2010,Mobile Telephone,CEO,VODAFONE CORPORATE LTD,54331,47.09
CLG,Standards Board for England,19/02/2010,Mobile Telephone,EXT,VODAFONE CORPORATE LTD,54331,24.98
CLG,Standards Board for England,19/02/2010,Mobile Telephone,GUI,VODAFONE CORPORATE LTD,54331,27.92
CLG,Standards Board for England,19/02/2010,Mobile Telephone,HRC,VODAFONE CORPORATE LTD,54331,25.74
CLG,Standards Board for England,19/02/2010,Mobile Telephone,IST,VODAFONE CORPORATE LTD,54331,626.37
CLG,Standards Board for England,19/02/2010,Mobile Telephone,KNO,VODAFONE CORPORATE LTD,54331,25.34
CLG,Standards Board for England,19/02/2010,Mobile Telephone,PER,VODAFONE CORPORATE LTD,54331,55.86
CLG,Standards Board for England,19/02/2010,Mobile Telephone,PST,VODAFONE CORPORATE LTD,54331,35.39
CLG,Standards Board for England,19/02/2010,Mobile Telephone,REG,VODAFONE CORPORATE LTD,54331,24.67
CLG,Standards Board for England,19/02/2010,Mobile Telephone,REP,VODAFONE CORPORATE LTD,54331,440.58
CLG,Standards Board for England,19/02/2010,Mobile Telephone,STA,VODAFONE CORPORATE LTD,54331,32.61
CLG,Standards Board for England,19/02/2010,Mobile Telephone,STR,VODAFONE CORPORATE LTD,54331,29.34
CLG,Standards Board for England,19/02/2010,Mobile Telephone,RSK,VODAFONE CORPORATE LTD,54331,50.34
CLG,Standards Board for England,19/02/2010,Mobile Telephone,COM,VODAFONE CORPORATE LTD,54331,51.24
CLG,Standards Board for England,19/02/2010,Mobile Telephone,FIN,VODAFONE CORPORATE LTD,54331,24.65
CLG,Standards Board for England,22/02/2010,Contract Staff,CEO,BADENOCH & CLARK,54413,"2,260.70"
CLG,Standards Board for England,22/02/2010,Photocopier,FAC,OCE (UK) LTD ,54308,"1,549.38"
CLG,Standards Board for England,22/02/2010,Contract Staff,HRC,SEARCH RECRUITMENT,54412,602.59
CLG,Standards Board for England,23/02/2010,Contract Staff,FIN,RUSSAM GMS,54415,"2,643.75"
CLG,Standards Board for England,24/02/2010,IT Hardware Repairs & Maintenance,IST,CONVERGENT NETWORK SOLUTIONS L,54404,"6,465.05"
CLG,Standards Board for England,24/02/2010,IT Hardware,IST,INSIGHT DIRECT (UK) LTD,54406,"6,052.41"
CLG,Standards Board for England,25/02/2010,IT Hardware,IST,CONVERGENT NETWORK SOLUTIONS L,54400,"2,835.28"
CLG,Standards Board for England,25/02/2010,Corporate Training,HRC,REED TRAINING,54407,"3,760.00"
CLG,Standards Board for England,26/02/2010,Other Recruitment Costs,HR,CAPITA RESOURCING,54403,862.5
CLG,Standards Board for England,26/02/2010,Placement Fee,RSK,CAPITA RESOURCING,54401,"2,073.88"
CLG,Standards Board for England,26/02/2010,Placement Fee,GUI,CAPITA RESOURCING,54402,"2,073.88"
CLG,Standards Board for England,26/02/2010,Legal Fees,REP,LANDMARK CHAMBERS,53240,"2,453.75"
CLG,Standards Board for England,26/02/2010,Repairs & Maintenance,FAC,OASIS INTERIOR LANDSCAPING,54424,567.92
CLG,Standards Board for England,01/03/2010,Contract Staff,CEO,BADENOCH & CLARK,54492,"2,260.70"
CLG,Standards Board for England,01/03/2010,Internal Audit Fees,FIN,BENTLEY JENNISON RISK MANAGEME,54524,"4,658.80"
CLG,Standards Board for England,01/03/2010,Professional Fees,IST,BROOKVEX,54518,898.88
CLG,Standards Board for England,01/03/2010,Professional Fees,IST,BROOKVEX,54519,"1,386.50"
CLG,Standards Board for England,01/03/2010,Travel - Train,EXT,CAPITA BUSINESS TRAVEL,54554,410.5
CLG,Standards Board for England,01/03/2010,Travel - Train,GUI,CAPITA BUSINESS TRAVEL,54554,649.1
CLG,Standards Board for England,01/03/2010,Travel - Train,HRC,CAPITA BUSINESS TRAVEL,54554,157.45
CLG,Standards Board for England,01/03/2010,Travel - Train,IST,CAPITA BUSINESS TRAVEL,54554,92
CLG,Standards Board for England,01/03/2010,Travel - Train,KNO,CAPITA BUSINESS TRAVEL,54554,"1,381.21"
CLG,Standards Board for England,01/03/2010,Travel - Train,PER,CAPITA BUSINESS TRAVEL,54554,71.4
CLG,Standards Board for England,01/03/2010,Travel - Train,REP,CAPITA BUSINESS TRAVEL,54554,"3,238.25"
CLG,Standards Board for England,01/03/2010,Travel - Train,RSK,CAPITA BUSINESS TRAVEL,54554,"1,070.80"
CLG,Standards Board for England,01/03/2010,Travel - Train,STA,CAPITA BUSINESS TRAVEL,54554,383.43
CLG,Standards Board for England,01/03/2010,Travel - Train,FIN,CAPITA BUSINESS TRAVEL,54554,149.2
CLG,Standards Board for England,01/03/2010,Travel - Train,REG,CAPITA BUSINESS TRAVEL,54554,-155.1
CLG,Standards Board for England,01/03/2010,Travel - Train,BRD,CAPITA BUSINESS TRAVEL,54554,265.5
CLG,Standards Board for England,01/03/2010,Travel - Train,CEO,CAPITA BUSINESS TRAVEL,54554,"2,499.41"
CLG,Standards Board for England,01/03/2010,Travel - Train,STR,CAPITA BUSINESS TRAVEL,54554,583.12
CLG,Standards Board for England,01/03/2010,Service Charges,FAC,CLEANING NORTHWEST,54549,"1,391.76"
CLG,Standards Board for England,01/03/2010,Stationery,FAC,EGAN REID STATIONERY CO,54520,730.4
CLG,Standards Board for England,01/03/2010,Conference Networking,COM,GUARDIAN MEDIA GROUP PLC,54495,"17,250.00"
CLG,Standards Board for England,01/03/2010,IT Software,IST,INSIGHT DIRECT (UK) LTD,54552,"9,736.17"
CLG,Standards Board for England,01/03/2010,Professional Fees,IST,INSIGHT DIRECT (UK) LTD,54539,"5,287.50"
CLG,Standards Board for England,01/03/2010,IT Software,IST,INSIGHT DIRECT (UK) LTD,54541,"15,819.50"
CLG,Standards Board for England,01/03/2010,Recruitment Advertising,HRC,PEARSON PRESS LTD,54528,"1,051.63"
CLG,Standards Board for England,01/03/2010,Recruitment Advertising,FIN,PENNA BARKER,54540,"2,258.47"
CLG,Standards Board for England,01/03/2010,Recruitment Advertising,REP,PENNA BARKER,54540,"2,258.46"
CLG,Standards Board for England,01/03/2010,IT Software,FIN,PINNACLE COMPUTING LIMITED,54551,"4,112.50"
CLG,Standards Board for England,01/03/2010,Staff Training,GUI,REED TRAINING,54545,852.17
CLG,Standards Board for England,01/03/2010,Work In Progress,FAC,RIDER LEVELL BUCKNALL,54542,"8,225.00"
CLG,Standards Board for England,01/03/2010,Contract Staff,HRC,SEARCH RECRUITMENT,54493,753.23
CLG,Standards Board for England,01/03/2010,Staff Training,PER,SPEARHEAD TRAINING,54514,"1,909.38"
CLG,Standards Board for England,01/03/2010,This Year's Conf Prepayments,COM,THE NEC GROUP,54538,"50,367.03"
CLG,Standards Board for England,01/03/2010,Professional Fees,IST,VIZUAL BUSINESS TOOLS PLC,54544,"11,027.38"
CLG,Standards Board for England,01/03/2010,Professional Fees,IST,VIZUAL BUSINESS TOOLS PLC,54526,934.13
CLG,Standards Board for England,02/03/2010,Contract Staff,REP,CONDUCT INVESTIGATIONS,54499,"2,523.20"
CLG,Standards Board for England,02/03/2010,Internet Charges,IST,NODE 4 LIMITED,54521,816.63
CLG,Standards Board for England,02/03/2010,Postage,FAC,PITNEY BOWES LTD,54496,513
CLG,Standards Board for England,02/03/2010,Commissioned Research,KNO,UNIVERSITY OF MANCHESTER,54636,"4,830.00"
CLG,Standards Board for England,03/03/2010,Professional Fees,IST,COM TREAT LIMITED,54522,528.75
CLG,Standards Board for England,03/03/2010,Press Office Services,COM,DURRANTS PRESS CUTTINGS LTD,54507,"2,791.68"
CLG,Standards Board for England,03/03/2010,Staff Training,GUI,EMAP LIMITED,54648,915.33
CLG,Standards Board for England,03/03/2010,Recruitment Advertising,COM,PENNA BARKER,54504,"3,452.74"
CLG,Standards Board for England,03/03/2010,Recruitment Advertising,PUB,PENNA BARKER,54504,"3,452.73"
CLG,Standards Board for England,03/03/2010,Other Recruitment Costs,HRC,PENNA BARKER,54501,"2,350.00"
CLG,Standards Board for England,03/03/2010,Other Recruitment Costs,HRC,PENNA BARKER,54500,"5,875.00"
CLG,Standards Board for England,03/03/2010,Placement Fee,GUI,SEARCH RECRUITMENT,54505,"2,481.22"
CLG,Standards Board for England,03/03/2010,Corporate Training,HRC,THE WORD CENTRE,54547,"1,169.12"
CLG,Standards Board for England,04/03/2010,IT Software,IST,INSIGHT DIRECT (UK) LTD,54517,"1,440.47"
CLG,Standards Board for England,04/03/2010,Electricity,FAC,JD WILLIAMS,54503,"7,775.28"
CLG,Standards Board for England,05/03/2010,Contract Staff,CEO,BADENOCH & CLARK,54509,"2,260.70"
CLG,Standards Board for England,05/03/2010,Professional Fees,HRC,BEAMANS MANAGEMENT CONSULTANTS,54543,"7,385.67"
CLG,Standards Board for England,05/03/2010,Contract Staff,HRC,SEARCH RECRUITMENT,54510,753.23
CLG,Standards Board for England,07/03/2010,Rates,FAC,MANCHESTER CITY COUNCIL,50042,"5,416.00"
CLG,Standards Board for England,08/03/2010,Postage - Franking machine finance costs,FAC,PITNEY BOWES FINANCE PLC,54783,"1,222.01"
CLG,Standards Board for England,09/03/2010,Contract Staff,FIN,RUSSAM GMS,54657,"2,643.75"
CLG,Standards Board for England,10/03/2010,Events at Conferences,COM,BRINTEX,54556,"2,513.70"
CLG,Standards Board for England,10/03/2010,Contract Staff,REP,MJ & P LTD,54921,881.25
CLG,Standards Board for England,10/03/2010,Internet Charges,IST,NODE 4 LIMITED,54521,816.63
CLG,Standards Board for England,11/03/2010,Publication Projects,EXT,CHAPEL PRESS,54600,"1,877.00"
CLG,Standards Board for England,11/03/2010,Periodicals,STA,LEXIS NEXIS,54637,"3,114.63"
CLG,Standards Board for England,11/03/2010,Periodicals,STA,LEXIS NEXIS,54638,"2,676.58"
CLG,Standards Board for England,11/03/2010,Periodicals,STA,LEXIS NEXIS,54639,"6,750.85"
CLG,Standards Board for England,11/03/2010,Periodicals,STA,LEXIS NEXIS,54640,"6,760.99"
CLG,Standards Board for England,11/03/2010,Periodicals,STA,LEXIS NEXIS,54641,"2,123.50"
CLG,Standards Board for England,11/03/2010,Periodicals,STA,LEXIS NEXIS,54642,828.38
CLG,Standards Board for England,11/03/2010,IT Software Support,IST,OPTEVIA LTD,54632,"14,481.88"
CLG,Standards Board for England,12/03/2010,Contract Staff,CEO,BADENOCH & CLARK,54654,"2,260.70"
CLG,Standards Board for England,12/03/2010,Contract Staff,HRC,SEARCH RECRUITMENT,54656,753.23
CLG,Standards Board for England,16/03/2010,Guidance/Advice - Production,EXT,EC GROUP,54720,"1,953.00"
CLG,Standards Board for England,16/03/2010,Internet Charges,IST,KINGSTON COMMUNICATIONS,54695,"3,525.00"
CLG,Standards Board for England,16/03/2010,IT Hardware,IST,ORANGE,54700,669.75
CLG,Standards Board for England,16/03/2010,This Year's Conf Prepayments,COM,PARAMOUNT PRINT GROUP,54731,502.9
CLG,Standards Board for England,16/03/2010,Contract Staff,FIN,RUSSAM GMS,54621,"2,643.75"
CLG,Standards Board for England,17/03/2010,Professional Fees,REP,"NCCC GROUP,ESCROW SOLUTIONS",54722,"3,348.75"
CLG,Standards Board for England,18/03/2010,Professional Subscriptions,IST,A.I MEDIA AND COMMUNICATIONS LTD,54736,"5,992.50"
CLG,Standards Board for England,18/03/2010,Audit Fees,FIN,NATIONAL AUDIT OFFICE,54724,"6,500.00"
CLG,Standards Board for England,19/03/2010,Contract Staff,CEO,BADENOCH & CLARK,54714,"2,260.70"
CLG,Standards Board for England,19/03/2010,Commissioned Research,HRC,BMG RESEARCH,54713,"10,428.13"
CLG,Standards Board for England,19/03/2010,Contract Staff,HRC,SEARCH RECRUITMENT,54712,753.23
CLG,Standards Board for England,22/03/2010,Staff Training,PST,INFRASTRUCT,54816,"3,623.70"
CLG,Standards Board for England,22/03/2010,IT Hardware,IST,INSIGHT DIRECT (UK) LTD,54792,514.06
CLG,Standards Board for England,22/03/2010,Printing,IST,INSIGHT DIRECT (UK) LTD,54793,"2,114.88"
CLG,Standards Board for England,22/03/2010,Contract Staff,FIN,RUSSAM GMS,54699,"2,643.75"
CLG,Standards Board for England,22/03/2010,Telephone and Fax - Land line,APE,VODAFONE CORPORATE LTD,54727,24.67
CLG,Standards Board for England,22/03/2010,Mobile Telephone,CEO,VODAFONE CORPORATE LTD,54727,45.95
CLG,Standards Board for England,22/03/2010,Mobile Telephone,EXT,VODAFONE CORPORATE LTD,54727,24.69
CLG,Standards Board for England,22/03/2010,Mobile Telephone,GUI,VODAFONE CORPORATE LTD,54727,32.86
CLG,Standards Board for England,22/03/2010,Mobile Telephone,HRC,VODAFONE CORPORATE LTD,54727,24.65
CLG,Standards Board for England,22/03/2010,Mobile Telephone,IST,VODAFONE CORPORATE LTD,54727,626.24
CLG,Standards Board for England,22/03/2010,Mobile Telephone,KNO,VODAFONE CORPORATE LTD,54727,26.24
CLG,Standards Board for England,22/03/2010,Mobile Telephone,PER,VODAFONE CORPORATE LTD,54727,49.4
CLG,Standards Board for England,22/03/2010,Mobile Telephone,PST,VODAFONE CORPORATE LTD,54727,25.11
CLG,Standards Board for England,22/03/2010,Mobile Telephone,REG,VODAFONE CORPORATE LTD,54727,26
CLG,Standards Board for England,22/03/2010,Mobile Telephone,REP,VODAFONE CORPORATE LTD,54727,368.76
CLG,Standards Board for England,22/03/2010,Mobile Telephone,STA,VODAFONE CORPORATE LTD,54727,32.79
CLG,Standards Board for England,22/03/2010,Mobile Telephone,STR,VODAFONE CORPORATE LTD,54727,27.47
CLG,Standards Board for England,22/03/2010,Mobile Telephone,RSK,VODAFONE CORPORATE LTD,54727,60.29
CLG,Standards Board for England,22/03/2010,Mobile Telephone,COM,VODAFONE CORPORATE LTD,54727,49.35
CLG,Standards Board for England,22/03/2010,Mobile Telephone,FIN,VODAFONE CORPORATE LTD,54727,25.13
CLG,Standards Board for England,23/03/2010,Staff Conference,COM,CROWNE PLAZA HOTEL,54804,"5,270.00"
CLG,Standards Board for England,24/03/2010,Staff Training,PER,HEMSLEY FRASER,54733,"1,232.58"
CLG,Standards Board for England,24/03/2010,Recruitment Advertising,IST,PENNA BARKER,54805,"1,492.25"
CLG,Standards Board for England,24/03/2010,Communications Projects,COM,WEBSEDGE TV,54814,"19,975.00"
CLG,Standards Board for England,25/03/2010,Professional Fees,IT,COMPUTER ASSOCIATES UK LTD,54794,"6,773.50"
CLG,Standards Board for England,25/03/2010,IT Hardware,IST,INSIGHT DIRECT (UK) LTD,54791,791.93
CLG,Standards Board for England,26/03/2010,Contract Staff,CEO,BADENOCH & CLARK,54797,"2,260.70"
CLG,Standards Board for England,26/03/2010,Seconded Staff,GUI,EQUALITY AND HUMAN RIGHTS,54803,"9,305.32"
CLG,Standards Board for England,26/03/2010,Postage,FAC,ROYAL MAIL GROUP PLC,54864,500
CLG,Standards Board for England,26/03/2010,Contract Staff,HRC,SEARCH RECRUITMENT,54798,753.23
CLG,Standards Board for England,26/03/2010,Placement Fee,HRC,SEARCH RECRUITMENT,54802,"2,877.83"
CLG,Standards Board for England,29/03/2010,Commissioned Research,STA,CARDIFF UNIVERISTY,54861,"42,010.97"
CLG,Standards Board for England,29/03/2010,Service Charges,FAC,CLEANING NORTHWEST,54860,"1,391.76"
CLG,Standards Board for England,29/03/2010,IT Software Support,IST,MISCO,54930,"13,848.00"
CLG,Standards Board for England,29/03/2010,Rent,FAC,N BROWN FUNDING LTD,54800,"51,758.75"
CLG,Standards Board for England,29/03/2010,Other Recruitment Costs,HRC,SHL LTD,54857,827.2
CLG,Standards Board for England,30/03/2010,Contract Staff,CEO,BADENOCH & CLARK,54929,"2,260.70"
CLG,Standards Board for England,30/03/2010,Professional Fees,HRC,HALLIWELLS,54932,"1,468.75"
CLG,Standards Board for England,30/03/2010,IT Software,IST,INSIGHT DIRECT (UK) LTD,54931,505.24
CLG,Standards Board for England,30/03/2010,Postage - Franking machine finance costs,FAC,PITNEY BOWES LTD,54862,513
CLG,Standards Board for England,31/03/2010,Service Charges,FAC,CLEANING NORTHWEST,54925,"1,304.64"
CLG,Standards Board for England,31/03/2010,IT Software Support,IST,COMPUTACENTER UK LTD,54865,"17,037.50"
CLG,Standards Board for England,31/03/2010,Stationery,FAC,EGAN REID STATIONERY CO,54909,671.01
CLG,Standards Board for England,31/03/2010,Mobile Telephone,IST,ORANGE,54926,568.93
CLG,Standards Board for England,31/03/2010,Work In Progress,FAC,RIDER LEVELL BUCKNALL,54977,"19,968.83"
